{"text_format":"1","workbook":"xlsx","n_sheets":8,"sheets":["Prompt","C100","C200","C300","C400","C500","C600","Enviar"],"not_rendered":{"charts":0,"images":6,"macros":1,"external_links":0,"defined_names":1,"comments":1,"pivot_tables":0},"unopened":[],"bounds":{"document_bytes":16777216,"sheet_cells":100000,"rows_first":2000,"rows_last":500,"rows_between":2000,"halvings":0,"cell_chars":16384,"cell_head_chars":4096},"cells_cut":0,"cells_raw":0,"read":"whole","date_system":"1900"}

{"sheet":"Prompt","index":0,"n_rows":79,"n_cols":4,"rows_kept":79,"cut":false,"hidden":true,"merged":[[1,3,2,6],[4,1,6,8],[43,1,44,8],[78,1,79,8],[9,1,10,8]]}
[]
[null,null,null,"¡ATENCIÓN!"]
[]
[]
[null,"Para hacer uso de las funcionalidades de esta Cédula Electrónica debe habilitar macros"]
[]
[]
[]
[]
[null,"Si utiliza Excel 2013 siga el siguiente procedimiento:"]
[]
[]
[]
[]
[]
[]
[]
[]
[]
[]
[]
[]
[]
[]
[]
[]
[]
[]
[]
[]
[]
[]
[]
[]
[]
[]
[]
[]
[]
[]
[]
[]
[]
[null,"Si utiliza Excel 2007 siga el siguiente procedimiento:"]
[]
[]
[]
[]
[]
[]
[]
[]
[]
[]
[]
[]
[]
[]
[]
[]
[]
[]
[]
[]
[]
[]
[]
[]
[]
[]
[]
[]
[]
[]
[]
[]
[]
[]
[null,"Si utiliza Excel 2000, 2002, 2003 siga el siguiente procedimiento:"]

{"sheet":"C100","index":1,"n_rows":244,"n_cols":24,"rows_kept":244,"cut":false,"hidden":false,"merged":[[127,19,127,22],[145,19,145,22],[152,6,152,9],[169,17,169,22],[94,17,94,21],[95,17,95,21],[99,1,100,22],[104,9,106,9],[104,10,106,11],[23,1,23,23],[1,4,1,19],[2,4,2,19],[3,4,3,19],[2,20,3,22],[1,20,1,22],[39,1,39,23],[30,5,30,13],[26,19,26,21],[30,17,30,22],[28,5,28,21],[26,5,26,6],[75,14,77,22],[45,14,46,22],[50,6,50,10],[56,17,56,22],[70,2,72,10]]}
[]
[null,null,null,null,"CENSO EDUCATIVO 2025",null,null,null,null,null,null,null,null,null,null,null,null,null,null,null,"CÉDULA"]
[null,null,null,null,"EDUCACIÓN BÁSICA ESPECIAL - INICIAL",null,null,null,null,null,null,null,null,null,null,null,null,null,null,null,"8AI"]
[null,null,null,null,"ESCOLARIZADA"]
[null,"Versión :",null,"GA-1.0"]
[null,"INSTRUCCIONES DEL FORMATO ELECTRÓNICO "]
[]
[]
[]
[]
[]
[]
[]
[]
[]
[]
[]
[]
[]
[]
[]
[]
[]
[null,"IDENTIFICACIÓN DEL SERVICIO EDUCATIVO"]
[]
[]
[null,"1. CÓDIGO MODULAR :",null,null,null,null,null,null,null,null,null,null,null,null,null,null,null,"2. CÓDIGO DE LOCAL EDUCATIVO :"]
[]
[null,"3. NOMBRE DEL SERVICIO :"]
[]
[null,"4. DISTRITO :",null,null,null,null,null,null,null,null,null,null,null,null,null,null,"LOCALIDAD :"]
[]
[]
[]
[]
[]
[null,"GESTIÓN DE LA INSTITUCIÓN EDUCATIVA :",null,null,null,null,null,null,null," 1 - Pública de gestión directa",null,null,null,null," 2 - Pública de gestión privada",null,null,null,null," 3 - Privada"]
[]
[]
[null,"100. CARACTERÍSTICAS DEL SERVICIO EDUCATIVO"]
[]
[null,"101. EN LOS ÚLTIMOS TRES MESES, ¿QUÉ PROGRAMAS O CAMPAÑAS DE SALUD SE RECIBIERON",null,null,null,null,null,null,null,null,null,null,"103. ¿EL SERVICIO/NIVEL EDUCATIVO CUENTA CON DOCUMENTO DE GESTIÓN?"]
[null,null,"LOS ESTUDIANTES EN ESTE SERVICIO/NIVEL EDUCATIVO ?"]
[null,null,"Marque con una “X” una o más opciones",null,null,null,null,null,null,null,null,null,null,null,"Sí","",null,null," No  ",""]
[]
[null,null,null,null,"Cuna más",null,null,null,null,null,null,null,null,null,"El documento de gestión aplica para II.EE. unidocentes, multigrado y polidocentes incompleta."]
[null,null,null,null,"Vacunación"]
[null,null,null,null,"Control de Crecimiento y Desarrollo"]
[null,null,null,null,"Despistaje de anemia",null,null,null,null,null,null,null,"104. ¿CON QUÉ INSTRUMENTOS DE GESTIÓN CUENTA EL SERVICIO/NIVEL"]
[null,null,null,null,"Wasi Mikuna",null,null,null,null,null,null,null,null,"EDUCATIVO, ANTES DEL INICIO DEL AÑO ESCOLAR?"]
[null,null,null,null,"Otro",null,null,null,null,null,null,null,null,"Marque con una “X” una o más opciones"]
[null,null,null,null,"Ninguno"]
[null,null,null,null,null,null,null,null,null,null,null,null,null,null,null,"Proyecto educativo institucional (PEI)"]
[null,"102.  LA ATENCIÓN DEL SERVICIO/NIVEL EDUCATIVO ES:",null,null,null,null,null,null,null,null,null,null,null,null,null,"Plan anual de trabajo (PAT)"]
[null,null,"Marque con una “X” una opción",null,null,null,null,null,null,null,null,null,null,null,null,"Proyecto curricular de la Institución Educativa (PCI)"]
[null,null,null,null,null,null,null,null,null,null,null,null,null,null,null,"Reglamento interno (RI)"]
[null,null,null,null,"Unidocente",null,null,null,null,null,null,null,null,null,null,"Otros"]
[null,null,null,null,"Polidocente incompleto o multigrado",null,null,null,null,null,null,null,null,null,null,"Ninguno"]
[null,null,null,null,"Polidocente completo",null,null,null,"Pase a la pregunta 104"]
[null,null,null,null,null,null,null,null,null,null,null,null,"105. EL SERVICIO/NIVEL EDUCATIVO, ¿CUENTA CON ACUERDOS DE CONVIVENCIA EN EL"]
[null,null,null,null,null,null,null,null,null,null,null,null,null,"MARCO DEL REGLAMENTO INTERNO (RI) DEL CEBE?"]
[]
[null,null,null,null,null,null,null,null,null,null,null,null,null,null,"Sí","",null,null," No  "]
[]
[]
[null,"106. EL SERVICIO/NIVEL EDUCATIVO, ¿IMPLEMENTA ACCIONES DE TUTORÍA Y ORIENTACIÓN",null,null,null,null,null,null,null,null,null,null,"108. ¿EL SERVICIO/NIVEL EDUCATIVO CUENTA CON MUNICIPIOS ESCOLARES?"]
[null,null,"EDUCATIVA DE ACUERDO AL PROTOCOLO?"]
[]
[null,null,"Sí","",null,null," No  ",null,null,null,null,null,null,null,"Sí",null,null,null," No  "]
[]
[null,null,"El protocolo de tutoría es general para todos los servicios, en relación a medidas y acciones en caso de violencia escolar, existen AT de parte de UGEL para implementarlos.",null,null,null,null,null,null,null,null,null,null,null,null,null,"¿Los municipios escolares del servicio/nivel educativo desarrollan"]
[null,null,null,null,null,null,null,null,null,null,null,null,null,null,null,null,"e implementan planes de acción conforme al protocolo?"]
[]
[null,null,null,null,null,null,null,null,null,null,null,null,null,null,null,null,"Sí",null,null,null," No  "]
[null,"107. EL SERVICIO/NIVEL EDUCATIVO, ¿IMPLEMENTA ACCIONES FORMATIVAS EN EDUCACIÓN"]
[null,null,"SEXUAL INTEGRAL PARA LOS ESTUDIANTES Y SU COMUNIDAD, DE ACUERDO CON",null,null,null,null,null,null,null,null,null,null,null,"El protocolo de tutoría es general para todos los servicios, en relación a medidas y acciones en caso de violencia escolar, existen AT de parte de UGEL para implementarlos."]
[null,null,"EL PROTOCOLO DE SERVICIO?"]
[]
[null,null,"Sí","",null,null," No  "]
[]
[]
[]
[null,"ACOMPAÑAMIENTO Y SOPORTE PEDAGÓGICO"]
[null,"109. DESDE EL INICIO DEL AÑO LECTIVO HASTA LA FECHA DE LA APLICACIÓN DEL ",null,null,null,null,null,null,null,null,null,null,"110. DURANTE EL AÑO 2024 Y HASTA LA FECHA DE APLICACIÓN DEL CENSO EDUCATIVO 2025,"]
[null,null,"CENSO EDUCATIVO 2025, ESTE SERVICIO/NIVEL EDUCATIVO, ¿HA RECIBIDO ",null,null,null,null,null,null,null,null,null,null,"EL SERVICIO/NIVEL EDUCATIVO, ¿HA RECIBIDO ALGÚN TIPO DE ACOMPAÑAMIENTO "]
[null,null,"ASISTENCIA TÉCNICA PRESENCIAL O VIRTUAL DEL ESPECIALISTA PEDAGÓGICO ",null,null,null,null,null,null,null,null,null,null,"DIRIGIDO AL DIRECTIVO?"]
[null,null,"RESPONSABLE O ENCARGADO DE EBE DE LA UGEL? "]
[null,null,null,null,null,null,null,null,null,null,null,null,null,null,"Sí",null,null,null," No  "]
[null,null,"Sí","",null,null," No  "]
[null,null,null,null,null,null,null,null,null,null,null,null,null,null,null,null,"¿Que Institución le brindó el acompañamiento?"]
[null,null,null,null,null,null,null,null,null,null,null,null,null,null,null,null,"Marque con una “X” una o más opciones"]
[]
[null,null,null,null,null,null,null,null,null,null,null,null,null,null,null,null,"DRE/GRE"]
[null,null,null,null,null,null,null,null,null,null,null,null,null,null,null,null,"UGEL"]
[null,null,null,null,null,null,null,null,null,null,null,null,null,null,null,null,"MINEDU",""]
[null,null,null,null,null,null,null,null,null,null,null,null,null,null,null,null,"OTROS",""]
[]
[]
[null,"SERVICIOS CON PERTINENCIA CULTURAL (GESTIÓN PÚBLICA Y PRIVADA)"]
[null,"Para atender esta sección, es importante que usted Señor(a) director(a), tenga presente los \"Lineamientos para la generación de servicios con pertinencia cultural a través de la incorporación de la variable étnica en entidades públicas\", aprobados mediante Decreto Supremo N° 010-2021-MC; de aplicación obligatoria para las entidades de la administración pública.",null,null,null,null,null,null,null,null,null,null,null,null,null,null,null,null,null,null,null,null,null,"SI"]
[null,null,null,null,null,null,null,null,null,null,null,null,null,null,null,null,null,null,null,null,null,null,null,"NO"]
[null,"111. DE ACUERDO CON LAS PRÁCTICAS COTIDIANAS Y COSTUMBRES, ¿USTED CONSIDERA QUE SU SERVICIO/NIVEL EDUCATIVO CUENTA CON ESTUDIANTES PERTENECIENTES A LOS"]
[null,null,"SIGUIENTES GRUPOS ÉTNICOS?"]
[]
[null,null,null,null,null,null,null,null,null,"¿Tiene estudiantes?","Solo si respondió “Sí” % estimado del total de estudiantes",null,null,null,"Para cada grupo étnico, seleccione (SI o NO) en la columna correspondiente y,"]
[null,null,null,null,"GRUPO ÉTNICO",null,null,null,null,null,null,null,null,null,"si le es posible, estime el porcentaje de estudiantes que pertenecen a ese grupo"]
[null,null,null,null,null,null,null,null,{"$f":"COUNTIF(J108:J115,\"SI\")+COUNTIF(J108:J115,\"NO\")","v":0},null,null,null,null,null,"en relación con el total de estudiantes."]
[null,null,1,"Quechua",null,null,null,null,null,null,null,"%"]
[null,null,2,"Aimara",null,null,null,null,null,null,null,"%"]
[null,null,3,"Indígena u originario de la Amazonía",null,null,null,null,null,null,null,"%"]
[null,null,4,"Perteneciente o parte de otro pueblo\nindígena",null,null,null,null,null,null,null,"%"]
[null,null,5,"Negro moreno, zambo, mulato o afro-\nperuano",null,null,null,null,null,null,null,"%"]
[null,null,6,"Blanco",null,null,null,null,null,null,null,"%"]
[null,null,7,"Mestizo",null,null,null,null,null,null,null,"%"]
[null,null,8,"Otros",null,null,null,null,null,null,null,"%"]
[null,null,null,null,null,null,null,null,null,null,{"$f":"SUM(K108:K115)","v":0}]
[]
[null,"CARACTERÍSTICAS DE LA ENSEÑANZA EN CONTEXTOS INTERCULTURALES BILINGÜES"]
[null,"112. ESTE SERVICIO/NIVEL EDUCATIVO, ¿ESTÁ RECONOCIDO COMO EIB?",null,null,null,null,null,null,null,null,null,null,"116. USTED, SEÑOR(A) DIRECTOR(A), ¿CONOCE SI EN LA COMUNIDAD DONDE SE ENCUENTRA EL"]
[null,null,null,null,null,null,null,null,null,null,null,null,null,"SERVICIO/NIVEL EDUCATIVO, LOS PADRES DE FAMILIA, OTROS ADULTOS Y/O ANCIANOS"]
[null,null,"Sí",null,"u","EIB de Fortalecimiento",null,null,null,null,null,null,null,"Y ANCIANAS HABLAN UNA LENGUA ORIGINARIA?"]
[null,null,null,null,null,"EIB de Revitalización"]
[]
[null,null,"No  ","X",null,null,"Pase a la pregunta 116",null,null,null,null,null,null,"Sí","",null,null,null,"No  "]
[]
[null,null,null,"SOLO SI ES EIB DE FORTALECIMIENTO, RESPONDA:"]
[null,"113. ESTE SERVICIO/NIVEL EDUCATIVO, ¿OFRECE ENSEÑANZA DEL CASTELLANO COMO"]
[null,null,"SEGUNDA LENGUA?",null,null,null,null,null,null,null,null,null,null,null,null,null,"¿Qué lengua originaria hablan?",null,null,""]
[null,null,null,null,null,null,null,null,null,null,null,null,null,null,null,null,null,null,null,null,null,"Anote el código según la"]
[null,null,"Sí",null,null,null,"No  ",null,null,null,null,null,null,null,null,null,null,null,null,null,null,"tabla de Lenguas Originarias"]
[null,null,null,null,null,null,null,null,null,null,null,null,null,null,null,null,null,null,null,null,null,"de la página 9."]
[null,null,null,"SOLO SI ES EIB DE REVITALIZACIÓN, RESPONDA:"]
[null,"114. ESTE SERVICIO/NIVEL EDUCATIVO, ¿OFRECE ENSEÑANZA DE LA LENGUA ORIGINARIA"]
[null,null,"COMO SEGUNDA LENGUA?"]
[]
[null,null,"Sí","",null,null,"No  ",null,null,null,null,null,"117. LOS ESTUDIANTES DE ESTE SERVICIO/NIVEL EDUCATIVO, ¿HABLAN UNA LENGUA ORIGINARIA?"]
[]
[null,"115. LOS DOCENTES DE ESTE SERVICIO/NIVEL EDUCATIVO, ¿HAN COMPLETADO LAS FICHAS"]
[null,null,"DE DIAGNÓSTICO SOCIOLINGÜÍSTICO Y PSICOLINGÜÍSTICO QUE CARACTERIZA",null,null,null,null,null,null,null,null,null,null,"Sí",null,null,null,null,"No  "]
[null,null,"EL NIVEL DE DOMINIO DE LAS LENGUAS (LENGUA ORIGINARIA Y CASTELLANO)"]
[null,null,"DE LOS ESTUDIANTES Y LA COMUNIDAD?"]
[]
[null,null,"Sí",null,null,null,"No  "]
[null,null,null,null,null,null,null,null,null,null,null,null,null,null,null,null,"Todos",null,null,"¿Qué lengua  originaria? "]
[null,null,null,null,null,"Mencione, ¿cómo fueron completadas las fichas?",null,null,null,null,null,null,null,null,null,null,"La mayoría",null,"u"]
[null,null,null,null,null,"Marque con una “X”, una opción",null,null,null,null,null,null,null,null,null,null,"Pocos",null,null,""]
[null,null,null,null,null,null,null,null,null,null,null,null,null,null,null,null,null,{"$f":"CONCATENATE(R144,R145,R146)","v":""}]
[null,null,null,null,null,"Con ayuda del especialista EIB de la UGEL.",null,null,null,null,null,null,null,null,null,null,null,null,null,null,"Anote el código según la"]
[null,null,null,null,null,"Con el asesoramiento del coordinador de mi Red educativa.",null,null,null,null,null,null,null,null,null,null,null,null,null,null,"tabla de Lenguas Originarias"]
[null,null,null,null,null,"Con el asesoramiento de otro docente que trabaja en mi IE.",null,null,null,null,null,null,null,null,null,null,null,null,null,null,"de la página 9."]
[null,null,null,null,null,"Con el apoyo de un docente de mayor experiencia de mi IE."]
[null,null,null,null,null,"De manera autónoma."]
[null,null,null,null,null,"Otros",""]
[]
[]
[null,"ARTICULACIÓN CON LA EDUCACIÓN COMUNITARIA"]
[null," 118. EN  EL  AÑO  2024, ¿SE  HAN  PUESTO  A  DISPOSICIÓN  LAS  INSTALACIONES  DE  ESTE "]
[null,null,"SERVICIO/NIVEL EDUCATIVO  PARA  EL  DESARROLLO  DE  ACTIVIDADES DE EDUCACIÓN",null,null,null,null,null,null,null,null,null,null,null,null,"¿Qué temas o contenidos se han abordado en las actividades de educación comunitaria"]
[null,null,"COMUNITARIA?",null,null,null,null,null,null,null,null,null,null,null,null,"realizadas en las instalaciones de su institución educativa?"]
[null,null,null,null,null,null,null,null,null,null,null,null,null,null,null,"Marque con una \"X\", una o más opciones"]
[]
[null,null,null,null,null,null,null,"Sí",null,null,null,null,null,null,null,null,"Ciudadanía y convivencia"]
[null,null,null,null,null,null,null,null,null,null,null,null,null,null,null,null,"Pueblos indígenas, diversidad cultural y arte"]
[null,null,null,null,null,null,null,null,null,null,null,null,"|",null,null,null,"Gestión pública y gobernabilidad"]
[null,null,null,null,null,null,null,null,null,null,null,null,null,null,null,null,"Generación de conocimientos y tecnología"]
[null,null,null,null,null,null,null,"No",null,null,null,null,null,null,null,null,"Desarrollo de capacidades y liderazgo"]
[null,null,null,null,null,null,null,null,null,null,null,null,null,null,null,null,"Trabajo y producción"]
[null,null,null,null,null,null,null,null,null,null,null,null,null,null,null,null,"Ambiente y territorio"]
[null,null,null,null,null,null,null,null,null,null,null,null,null,null,null,null,"Salud, seguridad alimentaria y deporte"]
[null,null,null,null,null,null,null,null,null,null,null,null,null,null,null,"","Otros",""]
[]
[]
[]
[]
[]
[]
["0100: Castellano"]
["0200: Achuar"]
["0300: Aimara"]
["0400: Amahuaca"]
["0500: Arabela"]
["0600: Asháninka"]
["0610: Asheninka"]
["0700: Awajún"]
["0800: Bora"]
["0900: Kapanawa"]
["1000: Cashinahua"]
["1100: Kawki"]
["1200: Chamikuro"]
["1300: Ese eja"]
["1400: Harakbut"]
["1500: Iñapari"]
["1600: Ikuitu"]
["1700: Iskonawa"]
["1800: Jaqaru"]
["1900: Kakataibo"]
["2000: Kakinte (caquinte)"]
["2110: Kandozi (Chapra)"]
["2120: Kandozi (Kandozi)"]
["2200: Kukama-Kukamiria"]
["2300: Madija (culina)"]
["2400: Maijiki"]
["2500: Matsés"]
["2600: Matsigenka"]
["2700: Munichi"]
["2800: Murui-muinanɨ"]
["2900: Matsigenka-montetokunirira"]
["3000: Nomatsigenga"]
["3100: Ocaina"]
["3200: Omagua"]
["3310: Quechua amazónico (Kichwa)"]
["3321: Quechua central (Ancash)"]
["3322: Quechua central (Huánuco)"]
["3323: Quechua central (Wanka)"]
["3324: Quechua central (Pasco)"]
["3331: Quechua norteño (Cajamarca)"]
["3332: Quechua norteño (Inkawasi kañaris)"]
["3341: Quechua sureño (Chanka)"]
["3342: Quechua sureño (Collao)"]
["3400: Resígaro"]
["3500: Secoya"]
["3600: Sharanahua"]
["3700: Shawi"]
["3800: Shipibo-Konibo"]
["3900: Shiwilu"]
["4000: Taushiro"]
["4100: Ticuna"]
["4200: Urarina"]
["4300: Wampis"]
["4400: Yagua"]
["4500: Yaminahua"]
["4600: Yanesha"]
["4700: Yine"]
["4800: Nahua"]
["4900: Lengua de señas peruana "]
["LENGUAS EXTRANJERAS"]
["5100: Alemán"]
["5200: Ingles"]
["5300: Italiano"]
["5400: Japones"]
["5500: Portugués"]
["5600: Ruso"]
["5700: Francés"]
["5800: Otra"]

{"sheet":"C200","index":2,"n_rows":81,"n_cols":40,"rows_kept":81,"cut":false,"hidden":false,"merged":[[19,2,19,3],[33,2,36,3],[33,4,35,5],[48,2,50,8],[12,6,12,7],[12,8,12,9],[11,36,11,37],[77,10,81,13],[78,6,78,7],[79,6,79,7],[69,2,69,4],[80,6,80,7],[76,6,76,7],[77,6,77,7],[11,16,11,17],[74,3,74,13],[67,2,68,4],[48,9,49,10],[48,11,48,16],[49,11,49,12],[10,2,13,3],[10,4,12,5],[11,38,11,39],[12,38,12,39],[15,2,15,3],[16,2,16,3],[17,2,17,3],[12,26,12,27],[10,28,12,29],[10,30,10,39],[11,6,11,7],[11,8,11,11],[11,12,11,15],[11,18,11,23],[12,14,12,15],[11,30,11,31],[11,32,11,33],[11,34,11,35],[18,2,18,3],[12,16,12,17],[12,18,12,19],[12,20,12,21],[12,22,12,23],[12,10,12,11],[12,12,12,13],[34,30,34,31],[34,32,34,33],[34,34,34,35],[34,36,34,37],[34,38,34,39],[35,26,35,27],[35,38,35,39],[38,2,38,3],[39,2,39,3],[40,2,40,3],[35,14,35,15],[35,16,35,17],[35,18,35,19],[35,20,35,21],[35,22,35,23],[33,28,35,29],[33,30,33,39],[34,6,34,7],[34,8,34,11],[34,12,34,15],[34,16,34,17],[1,5,1,19],[2,5,2,19],[70,5,70,6],[71,5,71,6],[67,7,67,9],[46,3,46,16],[6,2,6,22],[49,13,49,14],[49,15,49,16],[67,5,68,6],[69,5,69,6],[34,18,34,23],[35,6,35,7],[35,8,35,9],[35,10,35,11],[35,12,35,13]]}
[]
[null,null,null,null,null,"CENSO EDUCATIVO 2025"]
[null,null,null,null,null,"MATRÍCULA, DOCENTES Y RECURSOS"]
[]
[]
[]
[null,null,"200. MATRÍCULA Y SECCIONES"]
[]
[null,null,201,"MATRÍCULA POR EDAD Y SEXO, SEGÚN TIPO DE DISCAPACIDAD U OTRA CONDICIÓN"]
[]
[null,null,"Edad en años cumplidos al 31-03-2025",null,"TOTAL",null,"TIPO DE DISCAPACIDAD U OTRA CONDICIÓN",null,null,null,null,null,null,null,null,null,null,null,null,null,null,null,null,null,null,null,null,null,"TOTAL",null,"DOCUMENTO DE EVIDENCIA"]
[null,null,null,null,null,null,"DISCAPACIDAD INTELECTUAL",null,"DISCAPACIDAD AUDITIVA",null,null,null,"DISCAPACIDAD VISUAL",null,null,null,"DISCAPACIDAD FÍSICA O",null,"TRANSTORNO DEL ESPECTRO AUTISTA (TEA)",null,null,null,null,null,null,null,null,null,null,null,"CERTIFICADO DE DISCAPACIDAD",null,"INFORME O CERTIFICADO MÉDICO DE PROFESIONAL O INSTITUCIÓN",null,"CARNÉ DE CONADIS",null,"COPIA SIMPLE DE LA RESOLUCIÓN DE DISCAPACIDAD",null,"DECLARACIÓN JURADA"]
[null,null,null,null,null,null,"Severa",null,"Hipoacusia",null,"Sordera",null,"Baja Visión",null,"Ceguera",null,"MOTORA",null,"Requiere de apoyo (1)",null,"Requiere de apoyo notable (2)",null,"Requiere de apoyo muy notable (3)",null,"SORDO CEGUERA",null,"OTRA",null,null,null,"CERTIFICADO",null,"INFORME",null,"CARNÉ DE CONADIS",null,"RESOLUCIÓN",null,"DECLARACIÓN JURADA"]
[null,null,null,null,"H","M","H","M","H","M","H","M","H","M","H","M","H","M","H","M","H","M","H","M","H","M","H","M","H","M","H","M","H","M","H","M","H","M","H","M"]
["00",null,"TOTAL",null,{"$f":"SUM(E16:E20)","v":0},0,0,0,0,0,0,0,0,0,0,0,0,0,0,0,0,0,0,0,0,0,0,0,0,0,0,0,0,0,0,0,0,0,0,0]
["01",null,3,null,{"$f":"G16+I16+K16+M16+O16+Q16+S16+U16+W16+Y16+AA16","v":0},{"$f":"H16+J16+L16+N16+P16+R16+T16+V16+X16+Z16+AB16","v":0},null,null,null,null,null,null,null,null,null,null,null,null,null,null,null,null,null,null,null,null,null,null,{"$f":"AE16+AG16+AI16+AK16+AM16","v":0},{"$f":"AF16+AH16+AJ16+AL16+AN16","v":0}]
["02",null,4,null,{"$f":"G17+I17+K17+M17+O17+Q17+S17+U17+W17+Y17+AA17","v":0},0,null,null,null,null,null,null,null,null,null,null,null,null,null,null,null,null,null,null,null,null,null,null,{"$f":"AE17+AG17+AI17+AK17+AM17","v":0},0]
["03",null,5,null,0,0,null,null,null,null,null,null,null,null,null,null,null,null,null,null,null,null,null,null,null,null,null,null,0,0]
["04",null,6,null,0,0,null,null,null,null,null,null,null,null,null,null,null,null,null,null,null,null,null,null,null,null,null,null,0,0]
["05",null,"7 y más",null,0,0,null,null,null,null,null,null,null,null,null,null,null,null,null,null,null,null,null,null,null,null,null,null,0,0]
[]
[]
[]
[]
[]
[]
[]
[]
[]
[]
[]
[null,null,202,"MATRÍCULA POR EDAD Y SEXO, SEGÚN TIPO DE DISCAPACIDAD U OTRA CONDICIÓN"]
[]
[null,null,"SECCIÓN O GRUPO DE EDAD ATENDIDA",null,"TOTAL",null,"TIPO DE DISCAPACIDAD U OTRA CONDICIÓN",null,null,null,null,null,null,null,null,null,null,null,null,null,null,null,null,null,null,null,null,null,"TOTAL",null,"DOCUMENTO DE EVIDENCIA"]
[null,null,null,null,null,null,"DISCAPACIDAD INTELECTUAL",null,"DISCAPACIDAD AUDITIVA",null,null,null,"DISCAPACIDAD VISUAL",null,null,null,"DISCAPACIDAD FÍSICA O",null,"TRANSTORNO DEL ESPECTRO AUTISTA (TEA)",null,null,null,null,null,null,null,null,null,null,null,"CERTIFICADO DE DISCAPACIDAD",null,"INFORME O CERTIFICADO MÉDICO DE PROFESIONAL O INSTITUCIÓN",null,"CARNÉ DE CONADIS",null,"COPIA SIMPLE DE LA RESOLUCIÓN DE DISCAPACIDAD",null,"DECLARACIÓN JURADA"]
[null,null,null,null,null,null,"Severa",null,"Hipoacusia",null,"Sordera",null,"Baja Visión",null,"Ceguera",null,"MOTORA",null,"Requiere de apoyo (1)",null,"Requiere de apoyo notable (2)",null,"Requiere de apoyo muy notable (3)",null,"SORDO CEGUERA",null,"OTRA",null,null,null,"CERTIFICADO",null,"INFORME",null,"CARNÉ DE CONADIS",null,"RESOLUCIÓN",null,"DECLARACIÓN JURADA"]
[null,null,null,null,"H","M","H","M","H","M","H","M","H","M","H","M","H","M","H","M","H","M","H","M","H","M","H","M","H","M","H","M","H","M","H","M","H","M","H","M"]
["00",null,"TOTAL",null,{"$f":"SUM(E39:E41)","v":0},0,0,0,0,0,0,0,0,0,0,0,0,0,0,0,0,0,0,0,0,0,0,0,0,0,0,0,0,0,0,0,0,0,0,0]
["01",null,"3 Años",null,{"$f":"G39+I39+K39+M39+O39+Q39+S39+U39+W39+Y39+AA39","v":0},{"$f":"H39+J39+L39+N39+P39+R39+T39+V39+X39+Z39+AB39","v":0},null,null,null,null,null,null,null,null,null,null,null,null,null,null,null,null,null,null,null,null,null,null,{"$f":"AE39+AG39+AI39+AK39+AM39","v":0},{"$f":"AF39+AH39+AJ39+AL39+AN39","v":0}]
["02",null,"4 Años",null,{"$f":"G40+I40+K40+M40+O40+Q40+S40+U40+W40+Y40+AA40","v":0},{"$f":"H40+J40+L40+N40+P40+R40+T40+V40+X40+Z40+AB40","v":0},null,null,null,null,null,null,null,null,null,null,null,null,null,null,null,null,null,null,null,null,null,null,{"$f":"AE40+AG40+AI40+AK40+AM40","v":0},{"$f":"AF40+AH40+AJ40+AL40+AN40","v":0}]
["03",null,"5 Años",null,0,0,null,null,null,null,null,null,null,null,null,null,null,null,null,null,null,null,null,null,null,null,null,null,0,0]
[null,null,"Nota: Los totales de esta tabla deben ser iguales a los de la tabla 201."]
[]
[]
[]
[]
[null,null,203,"MATRICULADOS QUE SE ENCUENTREN EN SITUACIÓN DE HOSPITALIZACIÓN AL MOMENTO DEL REPORTE DEL CENSO EDUCATIVO 2025, SEGÚN TIPO DE DISCAPACIDAD U ORA CONDICIÓN"]
[]
[null,null,"TIPO DE DISCAPACIDAD U OTRA CONDICIÓN",null,null,null,null,null,null,"TOTAL",null,"Estudiantes en situación de hospitalización"]
[null,null,null,null,null,null,null,null,null,null,null,"Menos de 15 días de hospitalización",null,"De 15 a 30 días de hospitalización",null,"Más de 30 días de hospitalización"]
[null,null,null,null,null,null,null,null,null,"H","M","H","M","H","M","H","M"]
["00",null,"TOTAL",null,null,null,null,null,null,{"$f":"SUM(J53:J63)","v":0},0,0,0,0,0,0,0]
["01",null,"DISCAPACIDAD INTELECTUAL - Severa/Profunda",null,null,null,null,null,null,{"$f":"L53+N53+P53","v":0},{"$f":"M53+O53+Q53","v":0},null,null,null,null,null,null,null,{"$f":"G15","v":0},{"$f":"H15","v":0}]
["02",null,"DISCAPACIDAD AUDITIVA - Hipoacusia",null,null,null,null,null,null,{"$f":"L54+N54+P54","v":0},{"$f":"M54+O54+Q54","v":0},null,null,null,null,null,null,null,{"$f":"I15","v":0},{"$f":"J15","v":0}]
["03",null,"DISCAPACIDAD AUDITIVA - Sordera",null,null,null,null,null,null,{"$f":"L55+N55+P55","v":0},0,null,null,null,null,null,null,null,{"$f":"K15","v":0},{"$f":"L15","v":0}]
["04",null,"DISCAPACIDAD VISUAL - Baja Visión",null,null,null,null,null,null,0,0,null,null,null,null,null,null,null,{"$f":"M15","v":0},{"$f":"N15","v":0}]
["05",null,"DISCAPACIDAD VISUAL - Ceguera",null,null,null,null,null,null,0,0,null,null,null,null,null,null,null,{"$f":"O15","v":0},{"$f":"P15","v":0}]
["06",null,"DISCAPACIDAD FÍSICA O MOTORA",null,null,null,null,null,null,0,0,null,null,null,null,null,null,null,{"$f":"Q15","v":0},{"$f":"R15","v":0}]
["07",null,"TEA - Requiere de apoyo (Nivel 1)",null,null,null,null,null,null,0,0,null,null,null,null,null,null,null,{"$f":"S15","v":0},{"$f":"T15","v":0}]
["08",null,"TEA - Requiere de apoyo notable (Nivel 2)",null,null,null,null,null,null,0,0,null,null,null,null,null,null,null,{"$f":"U15","v":0},{"$f":"V15","v":0}]
["09",null,"TEA - Requiere de apoyo muy notable (Nivel 3)",null,null,null,null,null,null,0,0,null,null,null,null,null,null,null,{"$f":"W15","v":0},{"$f":"X15","v":0}]
["10",null,"SORDOCEGUERA",null,null,null,null,null,null,0,0,null,null,null,null,null,null,null,{"$f":"Y15","v":0},{"$f":"Z15","v":0}]
["12",null,"OTRA",null,null,null,null,null,null,0,0,null,null,null,null,null,null,null,{"$f":"AA15","v":0},{"$f":"AB15","v":0}]
[null,null,"Nota: Los totales de esta tabla pueden ser iguales o menores a los de la tabla 201."]
[]
[null,null,204,"NÚMERO TOTAL DE SECCIONES POR AÑO ATENDIDO, SEGÚN TURNO"]
[]
[null,null,"TURNO",null,null,"TOTAL\nSECCIONES",null,"GRADO DE ESTUDIO"]
[null,null,null,null,null,null,null,"3 Años","4 Años","5 Años"]
["00",null,"TOTAL",null,null,{"$f":"SUM(H70:J70)","v":0},null,{"$f":"SUM(H71:H72)","v":0},0,0]
["01",null,"Mañana",null,null,{"$f":"SUM(H71:J71)","v":0}]
["02",null,"Tarde",null,null,{"$f":"SUM(H72:J72)","v":0}]
[]
[]
[null,null,205," ¿QUÉ EDADES ATENDIDAS CUENTAN CON BIBLIOTECA DE AULA?"]
[null,null,"Marque con un aspa “X” la edad correspondiente y anote el número total de ejemplares según corresponda"]
[{"$f":"COUNTIF(D78:D81,\"X\")","v":0},null,null,null,"Edad atendida","","N° Total de\nEjemplares"]
["01",null,null,null,"3 años",null,null,null,null,null,"Nota:\nLas bibliotecas de aula están constituidas por libros, láminas y otros materiales didácticos similares, puestos al alcance de los estudiantes del aula."]
["02",null,null,null,"4 años"]
["03",null,null,null,"5 años"]
["04",null,null,null,"Ninguna edad",null,{"$f":"SUM(G78:H80)","v":0}]

{"sheet":"C300","index":3,"n_rows":184,"n_cols":47,"rows_kept":184,"cut":false,"hidden":false,"merged":[[16,35,16,36],[15,34,15,36],[14,34,14,36],[15,24,17,24],[15,33,16,33],[16,34,17,34],[15,30,17,30],[15,32,17,32],[7,10,7,23],[15,11,17,11],[15,12,17,12],[15,13,17,13],[15,28,17,28],[15,21,17,21],[12,26,12,27],[15,16,17,16],[15,17,17,17],[15,27,17,27],[15,19,17,19],[15,37,16,37],[15,38,17,38],[1,12,1,21],[2,12,2,21],[15,31,17,31],[15,26,17,26],[14,14,14,15],[15,14,15,15],[15,25,17,25],[6,10,6,23],[15,23,17,23],[15,10,17,10],[15,18,17,18],[15,20,17,20],[15,29,17,29],[15,22,17,22]]}
[]
[null,null,null,null,null,null,null,null,null,null,null,null,"CENSO EDUCATIVO 2025"]
[null,null,null,null,null,null,null,null,null,null,null,null,"MATRÍCULA, DOCENTES Y RECURSOS"]
[]
["PERSONAL",{"$f":"N10+U10+W10","v":0}]
[]
["DOCENTES",{"$f":"COUNTIF(Q19:Q118,\"01: Docente\")","v":0},null,null,null,null,null,null,null,null,"300. PERSONAL DOCENTE, AUXILIAR DE EDUCACIÓN Y ADMINISTRATIVO"]
["AUXILIARES",{"$f":"COUNTIF(Q19:Q118,\"03: Aux. de Educación\")","v":0},null,null,null,null,null,null,null,null,"En esta tabla, REGISTRE a todo el personal docente, auxiliares de educación y personal administrativo que se encuentre laborando en el servicio/nivel educativo durante el periodo\nde reporte del censo educativo. (EXCLUYA al personal que se encuentre haciendo uso de licencia y a los que han sido destacados a otra IE/DRE/UGEL)"]
["ADMINISTRATIVOS",{"$f":"COUNTIF(Q19:Q118,\"02: Administrativo\")","v":0}]
["NO DOCENTES",{"$f":"COUNTIF(Q19:Q118,\"04: No Docente\")","v":0},null,null,null,null,null,null,null,null,null,null,"TOTAL PROFESIONALES :  ",{"$f":"P10+S10","v":0},"DOCENTES :   ",null,null,"NO DOCENTES :   ",null,"AUX. DE EDUCACIÓN :  ",null,"ADMINISTRATIVOS :  "]
["DOCENTES CON SECCIÓN"]
[null,{"$f":"B7+B8+B9","v":0},null,null,null,null,null,null,null,null,"A continuación registre a todo el personal que desempeñe funciones docentes en el Servicio/Nivel educativo: Directivos con o sin aula a cargo, docentes de aula, jefes o jerárquicos, especiales (ed. física, computación, etc.)"]
[null,null,null,null,null,null,null,null,null,null,"Documentos fuente: Legajo de personal y CAP de la institución educativa."]
[null,null,3,4,5,6,7,8,9]
[null,null,null,null,null,null,null,null,null,null,null,301.10000000000002,301.2,301.3,302,null,303,304,305,306,307,308,309,310,311,312,313,314,315,316,317,318,319,320,321,null,null,322,323]
["GESTION",{"$f":"IF(OR('C100'!I37=\"X\",'C100'!N37=\"X\"),1,IF('C100'!S37=\"X\",3,\"\"))","v":""},null,null,null,null,null,null,null,null,"Nº","Apellido Paterno","Apellido Materno","Nombres","Documento de Identidad",null,"Tipo de\nPersonal","Edad","Sexo","Lengua\nmaterna","¿Domina una\nlengua\noriginaria?\nSí - No","Lengua originaria\nque domina","Fuente de\nfinanciamiento","Condición Laboral","Modalidad de Contrato","Máximo nivel\neducativo alcanzado","Especialidad Pedagógica\nque ha estudiado","¿En qué tipo de\ninstitución obtuvo\nsu formación pedagógica?","Estudios de Postgrado en Pedagogía","Años de Experiencia Laboral","Años de\nexperiencia\nlaboral en\neste servicio/nivel\neducativo","Función o cargo","Situación en\ncargo\ndirectivo","¿Tiene secciones a cargo?","¿Dónde presta el servicio?",null,null,"¿Presenta alguna discapacidad?","Solo si respondió Sí en la pregunta\n322 ¿Cúal es el tipo de discapacidad?"]
[null,null,"Exp1","Exp2","Exp3","Exp4","Exp5","Exp6",null,null,null,null,null,null,302.10000000000002,302.2,null,null,null,null,null,null,null,null,null,null,null,null,null,null,null,null,null,null,"CEBE","SAANEE\n321.a. Especifique si es:"]
["302.1 Tipo de documento de Identidad","314. Tipo de inst. donde estudio","Corr","Escala","Gest","Fun cion","Duplex","Fmt",null,null,null,null,null,null,"Tipo","Número",null,null,null,null,null,null,null,null,null,null,null,null,null,null,null,null,null,"Sí / No",null,"Coordinador SAANEE","Docente o No Docente SAANEE","Sí / No"]
["01: DNI.","01: IESP (Público)",1,{"$f":"IF(AND(LEFT(Q19,2)=\"01\",LEFT(W19,2)=\"01\",LEFT(X19,2)=\"01\",E19=1),1,0)","v":0},{"$f":"$B$16","v":""},{"$f":"IF(Q19<>\"\",VALUE(LEFT(Q19,2)),0)","v":0},{"$f":"IF(P19<>\"\",COUNTIF($Q$20:$Q$319,P19),0)","v":0},{"$f":"IF(K19<>\"\",1,0)","v":0},null,null,{"$f":"IF(C19<=$B$5,C19,\"\")","v":""},"","","","","","","","","","","","","","","","","","","","","","","","","","","","",null,null,null,null,null,null,"",""]
["02: Carnet Ext.","02: IESP (Privado)",2,{"$f":"IF(AND(LEFT(Q20,2)=\"01\",LEFT(W20,2)=\"01\",LEFT(X20,2)=\"01\",E20=1),1,0)","v":0},{"$f":"$B$16","v":""},{"$f":"IF(Q20<>\"\",VALUE(LEFT(Q20,2)),0)","v":0},{"$f":"IF(P20<>\"\",COUNTIF($Q$20:$Q$319,P20),0)","v":0},0,null,null,{"$f":"IF(C20<=$B$5,C20,\"\")","v":""},"","","","","","","","","","","","","","","","","","","","","","","","","","","","","","","","","","","",""]
["03: Pasaporte","03: Universidad Privada",3,0,"",0,0,0,null,null,{"$f":"IF(C21<=$B$5,C21,\"\")","v":""},"","","","","","","","","","","","","","","","","","","","","","","","","","","","","","","","","","","",""]
[null,"04: Universidad Pública",4,0,"",0,0,0,null,null,"","","","","","","","","","","","","","","","","","","","","","","","","","","","","","","","","","","","",""]
["303. Tipo de Personal","05: EESP (Público)",5,0,"",0,0,0,null,null,"","","","","","","","","","","","","","","","","","","","","","","","","","","","","","","","","","","","",""]
["01: Docente","06: EESP (Privado)",6,0,"",0,0,0,null,null,"","","","","","","","","","","","","","","","","","","","","","","","","","","","","","","","","","","","",""]
["02: Administrativo","315. Segunda Especialidad",7,0,"",0,0,0,null,null,"","","","","","","","","","","","","","","","","","","","","","","","","","","","","","","","","","","","",""]
["03: Aux. de Educación","Utilice las especialidades de la tabla de códigos 313.",8,0,"",0,0,0,null,null,"","","","","","","","","","","","","","","","","","","","","","","","","","","","","","","","","","","","",""]
["04: No Docente","316. Estudios de Postgrado en Pedagogía",9,0,"",0,0,0,null,null,"","","","","","","","","","","","","","","","","","","","","","","","","","","","","","","","","","","","",""]
[null,"Estudios de Maestría y doctorado",10,0,"",0,0,0,null,null,"","","","","","","","","","","","","","","","","","","","","","","","","","","","","","","","","","","","",""]
["305. Sexo","01: Maestria concluida con grado",11,0,"",0,0,0,null,null,"","","","","","","","","","","","","","","","","","","","","","","","","","","","","","","","","","","","",""]
["Hombre","02: Maestria concluida sin grado",12,0,"",0,0,0,null,null,"","","","","","","","","","","","","","","","","","","","","","","","","","","","","","","","","","","","",""]
["Mujer","03: Maestria en proceso",13,0,"",0,0,0,null,null,"","","","","","","","","","","","","","","","","","","","","","","","","","","","","","","","","","","","",""]
[null,"04: Doctorado concluido con grado",14,0,"",0,0,0,null,null,"","","","","","","","","","","","","","","","","","","","","","","","","","","","","","","","","","","","",""]
["306. Lengua Materna","05: Doctorado concluido sin grado",15,0,"",0,0,0,null,null,"","","","","","","","","","","","","","","","","","","","","","","","","","","","","","","","","","","","",""]
["0100: Castellano","06: Doctorado en proceso",16,0,"",0,0,0,null,null,"","","","","","","","","","","","","","","","","","","","","","","","","","","","","","","","","","","","",""]
["0200: Achuar","07: Sin Postgrado",17,0,"",0,0,0,null,null,"","","","","","","","","","","","","","","","","","","","","","","","","","","","","","","","","","","","",""]
["0300: Aimara",null,18,0,"",0,0,0,null,null,"","","","","","","","","","","","","","","","","","","","","","","","","","","","","","","","","","","","",""]
["0400: Amahuaca",null,19,0,"",0,0,0,null,null,"","","","","","","","","","","","","","","","","","","","","","","","","","","","","","","","","","","","",""]
["0500: Arabela","317. Tiempo de Servicio",20,0,"",0,0,0,null,null,"","","","","","","","","","","","","","","","","","","","","","","","","","","","","","","","","","","","",""]
["0600: Asháninka","Solo personal Nombrado.",21,0,"",0,0,0,null,null,"","","","","","","","","","","","","","","","","","","","","","","","","","","","","","","","","","","","",""]
["0610: Asheninka","Tiempo contado expresado en años desde su fecha de Nombramiento",22,0,"",0,0,0,null,null,"","","","","","","","","","","","","","","","","","","","","","","","","","","","","","","","","","","","",""]
["0700: Awajún",null,23,0,"",0,0,0,null,null,"","","","","","","","","","","","","","","","","","","","","","","","","","","","","","","","","","","","",""]
["0800: Bora","318. Años de Experiencia Laboral",24,0,"",0,0,0,null,null,"","","","","","","","","","","","","","","","","","","","","","","","","","","","","","","","","","","","",""]
["0900: Kapanawa","Registre el total de años que tiene como experiencia",25,0,"",0,0,0,null,null,"","","","","","","","","","","","","","","","","","","","","","","","","","","","","","","","","","","","",""]
["1000: Cashinahua","en el Tipo de Personal que se está registrando (Tabla 301.)",26,0,"",0,0,0,null,null,"","","","","","","","","","","","","","","","","","","","","","","","","","","","","","","","","","","","",""]
["1100: Kawki",null,27,0,"",0,0,0,null,null,"","","","","","","","","","","","","","","","","","","","","","","","","","","","","","","","","","","","",""]
["1200: Chamikuro","319. Años de experiencia laboral en este servicio/ nivel educativo",28,0,"",0,0,0,null,null,"","","","","","","","","","","","","","","","","","","","","","","","","","","","","","","","","","","","",""]
["1300: Ese eja","Anote el N° de años de experiencia prestando servicios",29,0,"",0,0,0,null,null,"","","","","","","","","","","","","","","","","","","","","","","","","","","","","","","","","","","","",""]
["1400: Harakbut","en este servicio/nivel educativo por el tipo de personal",30,0,"",0,0,0,null,null,"","","","","","","","","","","","","","","","","","","","","","","","","","","","","","","","","","","","",""]
["1500: Iñapari","que se está registrando (Tabla 301.)",31,0,"",0,0,0,null,null,"","","","","","","","","","","","","","","","","","","","","","","","","","","","","","","","","","","","",""]
["1600: Ikuitu",null,32,0,"",0,0,0,null,null,"","","","","","","","","","","","","","","","","","","","","","","","","","","","","","","","","","","","",""]
["1700: Iskonawa","320. Escala Magisterial",33,0,"",0,0,0,null,null,"","","","","","","","","","","","","","","","","","","","","","","","","","","","","","","","","","","","",""]
["1800: Jaqaru","Complete los datos de Escala Magisterial, según corresponda",34,0,"",0,0,0,null,null,"","","","","","","","","","","","","","","","","","","","","","","","","","","","","","","","","","","","",""]
["1900: Kakataibo","01: Primera",35,0,"",0,0,0,null,null,"","","","","","","","","","","","","","","","","","","","","","","","","","","","","","","","","","","","",""]
["2000: Kakinte (caquinte)","02: Segunda",36,0,"",0,0,0,null,null,"","","","","","","","","","","","","","","","","","","","","","","","","","","","","","","","","","","","",""]
["2110: Kandozi (Chapra)","03: Tercera",37,0,"",0,0,0,null,null,"","","","","","","","","","","","","","","","","","","","","","","","","","","","","","","","","","","","",""]
["2120: Kandozi (Kandozi)","04: Cuarta",38,0,"",0,0,0,null,null,"","","","","","","","","","","","","","","","","","","","","","","","","","","","","","","","","","","","",""]
["2200: Kukama-kukamiria","05: Quinta",39,0,"",0,0,0,null,null,"","","","","","","","","","","","","","","","","","","","","","","","","","","","","","","","","","","","",""]
["2300: Madija (culina)","06: Sexta",40,0,"",0,0,0,null,null,"","","","","","","","","","","","","","","","","","","","","","","","","","","","","","","","","","","","",""]
["2400: Maijiki","07: Séptima",41,0,"",0,0,0,null,null,"","","","","","","","","","","","","","","","","","","","","","","","","","","","","","","","","","","","",""]
["2500: Matsés","08: Octava",42,0,"",0,0,0,null,null,"","","","","","","","","","","","","","","","","","","","","","","","","","","","","","","","","","","","",""]
["2600: Matsigenka","09: Sin Escala",43,0,"",0,0,0,null,null,"","","","","","","","","","","","","","","","","","","","","","","","","","","","","","","","","","","","",""]
["2700: Munichi",null,44,0,"",0,0,0,null,null,"","","","","","","","","","","","","","","","","","","","","","","","","","","","","","","","","","","","",""]
["2800: Murui-muinani","321. Función o Cargo",45,0,"",0,0,0,null,null,"","","","","","","","","","","","","","","","","","","","","","","","","","","","","","","","","","","","",""]
["2900: Matsigenka-montetokunirira","(Desempeñado a la fecha de reporte)",46,0,"",0,0,0,null,null,"","","","","","","","","","","","","","","","","","","","","","","","","","","","","","","","","","","","",""]
["3000: Nomatsigenga","Docentes",47,0,"",0,0,0,null,null,"","","","","","","","","","","","","","","","","","","","","","","","","","","","","","","","","","","","",""]
["3100: Ocaina","01: (102)-Director",48,0,"",0,0,0,null,null,"","","","","","","","","","","","","","","","","","","","","","","","","","","","","","","","","","","","",""]
["3200: Omagua","02: (111)-Docente de Aula",49,0,"",0,0,0,null,null,"","","","","","","","","","","","","","","","","","","","","","","","","","","","","","","","","","","","",""]
["3310: Quechua amazónico (Kichwa)",null,50,0,"",0,0,0,null,null,"","","","","","","","","","","","","","","","","","","","","","","","","","","","","","","","","","","","",""]
["3321: Quechua central (Ancash)",null,51,0,"",0,0,0,null,null,"","","","","","","","","","","","","","","","","","","","","","","","","","","","","","","","","","","","",""]
["3322: Quechua central (Huánuco)",null,52,0,"",0,0,0,null,null,"","","","","","","","","","","","","","","","","","","","","","","","","","","","","","","","","","","","",""]
["3323: Quechua central (Wanka)",null,53,0,"",0,0,0,null,null,"","","","","","","","","","","","","","","","","","","","","","","","","","","","","","","","","","","","",""]
["3324: Quechua central (Pasco)","No Docentes",54,0,"",0,0,0,null,null,"","","","","","","","","","","","","","","","","","","","","","","","","","","","","","","","","","","","",""]
["3331: Quechua norteño (Cajamarca)","03: (532)-Terapista Físico",55,0,"",0,0,0,null,null,"","","","","","","","","","","","","","","","","","","","","","","","","","","","","","","","","","","","",""]
["3332: Quechua norteño (Inkawasi Kañaris)","04: (540)-Terapista OcupacionaL",56,0,"",0,0,0,null,null,"","","","","","","","","","","","","","","","","","","","","","","","","","","","","","","","","","","","",""]
["3341: Quechua sureño (Chanka)","05: (533)-Terapista del Lenguaje",57,0,"",0,0,0,null,null,"","","","","","","","","","","","","","","","","","","","","","","","","","","","","","","","","","","","",""]
["3342: Quechua sureño (Collao)","06: (503)-Personal de Salud",58,0,"",0,0,0,null,null,"","","","","","","","","","","","","","","","","","","","","","","","","","","","","","","","","","","","",""]
["3400: Resígaro","07: (501)-Psicólogo",59,0,"",0,0,0,null,null,"","","","","","","","","","","","","","","","","","","","","","","","","","","","","","","","","","","","",""]
["3500: Secoya","08: (502)-Trabajo Social / Servicio Social",60,0,"",0,0,0,null,null,"","","","","","","","","","","","","","","","","","","","","","","","","","","","","","","","","","","","",""]
["3600: Sharanahua","09: (537)-Guía intérprete de sordoceguera",61,0,"",0,0,0,null,null,"","","","","","","","","","","","","","","","","","","","","","","","","","","","","","","","","","","","",""]
["3700: Shawi","10: (538)-Intérprete de Lengua de Señas Peruana",62,0,"",0,0,0,null,null,"","","","","","","","","","","","","","","","","","","","","","","","","","","","","","","","","","","","",""]
["3800: Shipibo-Konibo","11: (539)-Modelo Lingüístico",63,0,"",0,0,0,null,null,"","","","","","","","","","","","","","","","","","","","","","","","","","","","","","","","","","","","",""]
["3900: Shiwilu",null,64,0,"",0,0,0,null,null,"","","","","","","","","","","","","","","","","","","","","","","","","","","","","","","","","","","","",""]
["4000: Taushiro",null,65,0,"",0,0,{"$f":"IF(K83<>\"\",1,0)","v":0},null,null,"","","","","","","","","","","","","","","","","","","","","","","","","","","","","","","","","","","","",""]
["4100: Ticuna",null,66,{"$f":"IF(AND(LEFT(Q84,2)=\"01\",LEFT(W84,2)=\"01\",LEFT(X84,2)=\"01\",E84=1),1,0)","v":0},{"$f":"$B$16","v":""},{"$f":"IF(Q84<>\"\",VALUE(LEFT(Q84,2)),0)","v":0},{"$f":"IF(P84<>\"\",COUNTIF($Q$20:$Q$319,P84),0)","v":0},0,null,null,"","","","","","","","","","","","","","","","","","","","","","","","","","","","","","","","","","","","",""]
["4200: Urarina",null,67,0,"",0,0,0,null,null,{"$f":"IF(C85<=$B$5,C85,\"\")","v":""},"","","","","","","","","","","","","","","","","","","","","","","","","","","","","","","","","","","",""]
["4300: Wampis","Administrativos",68,0,"",0,0,0,null,null,"","","","","","","","","","","","","","","","","","","","","","","","","","","","","","","","","","","","",""]
["4400: Yagua","12: (504)-Administrador o Contador",69,0,"",0,0,0,null,null,"","","","","","","","","","","","","","","","","","","","","","","","","","","","","","","","","","","","",""]
["4500: Yaminahua","13: (506)-Auxiliar de Biblioteca",70,0,"",0,0,0,null,null,"","","","","","","","","","","","","","","","","","","","","","","","","","","","","","","","","","","","",""]
["4600: Yanesha","14: (507)-Auxiliar de Laboratorios",71,0,"",0,0,0,null,null,"","","","","","","","","","","","","","","","","","","","","","","","","","","","","","","","","","","","",""]
["4700: Yine","15: (508)-Secretaria u oficinista",72,0,"",0,0,0,null,null,"","","","","","","","","","","","","","","","","","","","","","","","","","","","","","","","","","","","",""]
["4800: Nahua","16: (511)-Asistente Administrativo",73,0,"",0,0,0,null,null,"","","","","","","","","","","","","","","","","","","","","","","","","","","","","","","","","","","","",""]
["5100: Alemán","17: (512)-Personal de Servicio - Mantenimiento",74,0,"",0,0,0,null,null,"","","","","","","","","","","","","","","","","","","","","","","","","","","","","","","","","","","","",""]
["5200: Inglés","18: (513)-Personal de Servicio - Cocina",75,0,"",0,0,0,null,null,"","","","","","","","","","","","","","","","","","","","","","","","","","","","","","","","","","","","",""]
["5300: Italiano","19: (514)-Personal de Servicio - Limpieza",76,0,"",0,0,0,null,null,"","","","","","","","","","","","","","","","","","","","","","","","","","","","","","","","","","","","",""]
["5400: Japonés","20: (515)-Personal de Servicio - Vigilante",77,0,"",0,0,0,null,null,"","","","","","","","","","","","","","","","","","","","","","","","","","","","","","","","","","","","",""]
["5500: Portugués","21: (516)-Personal de Servicio - Otro",78,0,"",0,0,0,null,null,"","","","","","","","","","","","","","","","","","","","","","","","","","","","","","","","","","","","",""]
["5600: Ruso","22: (505)-Otro personal profesional",79,0,"",0,0,0,null,null,"","","","","","","","","","","","","","","","","","","","","","","","","","","","","","","","","","","","",""]
["5700: Francés","23: (518)-Otro personal No profesional",80,0,"",0,0,0,null,null,"","","","","","","","","","","","","","","","","","","","","","","","","","","","","","","","","","","","",""]
["5800: Otra lengua extranjera",null,81,0,"",0,0,0,null,null,"","","","","","","","","","","","","","","","","","","","","","","","","","","","","","","","","","","","",""]
[null,null,82,0,"",0,0,0,null,null,"","","","","","","","","","","","","","","","","","","","","","","","","","","","","","","","","","","","",""]
["308. Lengua Originaria",null,83,0,"",0,0,0,null,null,"","","","","","","","","","","","","","","","","","","","","","","","","","","","","","","","","","","","",""]
["De: 0200 a 4800",null,84,0,"",0,0,0,null,null,"","","","","","","","","","","","","","","","","","","","","","","","","","","","","","","","","","","","",""]
[null,null,85,0,"",0,0,0,null,null,"","","","","","","","","","","","","","","","","","","","","","","","","","","","","","","","","","","","",""]
["309. Fuente de Financiamiento",null,86,0,"",0,0,0,null,null,"","","","","","","","","","","","","","","","","","","","","","","","","","","","","","","","","","","","",""]
["01: Sector Educación",null,87,0,"",0,0,0,null,null,"","","","","","","","","","","","","","","","","","","","","","","","","","","","","","","","","","","","",""]
["02: Otro sector público",null,88,0,"",0,0,0,null,null,"","","","","","","","","","","","","","","","","","","","","","","","","","","","","","","","","","","","",""]
["03: Municipalidad",null,89,0,"",0,0,0,null,null,"","","","","","","","","","","","","","","","","","","","","","","","","","","","","","","","","","","","",""]
["04: Gobierno Regional",null,90,0,"",0,0,0,null,null,"","","","","","","","","","","","","","","","","","","","","","","","","","","","","","","","","","","","",""]
["05: APAFA",null,91,0,"",0,0,0,null,null,"","","","","","","","","","","","","","","","","","","","","","","","","","","","","","","","","","","","",""]
["06: Otra fuente Privada",null,92,0,"",0,0,0,null,null,"","","","","","","","","","","","","","","","","","","","","","","","","","","","","","","","","","","","",""]
[null,null,93,0,"",0,0,0,null,null,"","","","","","","","","","","","","","","","","","","","","","","","","","","","","","","","","","","","",""]
["310. Condición Laboral",null,94,0,"",0,0,0,null,null,"","","","","","","","","","","","","","","","","","","","","","","","","","","","","","","","","","","","",""]
["01: Nombrado",null,95,0,"",0,0,0,null,null,"","","","","","","","","","","","","","","","","","","","","","","","","","","","","","","","","","","","",""]
["02: Contratado",null,96,0,"",0,0,0,null,null,"","","","","","","","","","","","","","","","","","","","","","","","","","","","","","","","","","","","",""]
["03: No aplica",null,97,0,"",0,0,0,null,null,"","","","","","","","","","","","","","","","","","","","","","","","","","","","","","","","","","","","",""]
[null,null,98,0,"",0,0,0,null,null,"","","","","","","","","","","","","","","","","","","","","","","","","","","","","","","","","","","","",""]
["311. Modalidad de Contrato",null,99,0,"",0,0,0,null,null,"","","","","","","","","","","","","","","","","","","","","","","","","","","","","","","","","","","","",""]
["Contrato Público",null,100,0,"",0,0,0,null,null,"","","","","","","","","","","","","","","","","","","","","","","","","","","","","","","","","","","","",""]
["01: A plazo fijo D. Leg. 728",null,null,null,null,null,null,null,null,null,null,"","","","","","","","","","","","","","","","","","","","","","","","","",""]
["02: Locación de Serv. / Honorarios","99: (999)-Auxiliar de Educación",null,null,null,null,null,null,null,null,"…","…","…","…","…","…","…","…","…","…","…","…","…","…","…","…","…","…","…","…","…","…","…","…","…","…","…","…","…"]
["03: CAS - D. Leg. 1057"]
["04: Contrato D. Leg. 276","322. Situación en el Cargo Directivo"]
["05: Contrato Ley 30328","01: Designado"]
["06: Otra modalidad","02: Encargado"]
["Contrato Privado"]
["07: A plazo indefinido (Permanente)"]
["08: Plazo fijo (Tiempo determinado)","05: Encargado"]
["09: A tiempo parcial (por horas)"]
["10: Locación de Serv. / Honorarios","323. Destaque o Licencia"]
["11: Otra modalidad","01: Cubriendo una licencia"]
[null,"02: De otra I.E./DRE/UGEL"]
["312. Máximo Nivel Educativo Alcanzado","03: No Aplica"]
["01: EP.Concluidos con título"]
["02: EP.Concluidos sin título"]
["03: EP.No concluidos"]
["04: NP.Concluidos con título","324. Jornada Laboral (Nombramiento / Contrato)"]
["05: NP.Concluidos sin título","40: 40 horas"]
["06: NP.No concluidos","30: 30 horas"]
["07: Secundaria","25: 25 horas"]
["08: Primaria","24: 24 horas"]
[null,"23: Menos 24 horas"]
["313. Especialidad del Título"]
["01: Educación Inicial","SI / NO"]
["02: Educación Primaria","SI"]
["03: E.I. Intercultural Bilingüe","NO"]
["04: E.P. Intercultural Bilingüe"]
["05: Educación Básica Alternativa","Parroquiales"]
["06: Educación Especial","05: APAFA"]
["07: Educación Física","06: Otra fuente Privada"]
["08: Educación Artística","01: Sector Educación"]
["09: E.S. Lengua y Literatura"]
["10: E.S. Comunicación"]
["11: E.S. Matemática y Física","336.2 ¿Cuál es el tipo de discapacidad?"]
["12: E.S. Matemática","01: Auditiva"]
["13: E.S. CCSS y Filosofía","02: Visual"]
["14: E.S. Ciencias Sociales","03: Física o Motora"]
["15: E.S. Ciencias Naturales","04: Otras"]
["16: E.S. Ciencia Tecnología y Ambiente"]
["17: E.S. Alimentación y Nutrición"]
["18: E.S. Biología y Química"]
["19: E.S. Historia y Geografía"]
["20: E.S. CC.HH. Sociales"]
["21: E.S. Idioma Inglés"]
["22: Educación Religiosa"]
["23: E.S. Educación Familiar"]
["24: E.T. Artes Industriales"]
["25: E.T. Artesanía"]
["26: E.T. Agropecuaria"]
["27: E.T. Construcción en madera"]
["28: E.T. Computación e Informática"]
["29: E.T. Carpintería/Ebanistería"]
["30: E.T. Electricidad"]
["31: E.T. Electrónica"]
["32: E.T. Ebanistería"]
["33: E.T. Industria del Vestido"]
["34: E.T. Industria del Vestido Alimentación y Alta Costura"]
["35: E.T. en Industria del Vestido y Alta Costura"]
["36: E.T.Técnica Esp. Ind. del Vestido Ind.Alimentaria y Artes"]
["37: E.T. Industria Alimentaria"]
["38: E.T. Mecánica Automotriz"]
["39: E.T. Mecánica de Producción"]
["40: E.T. Mecánica de Producción y Soldadura"]
["41: E.T. Textilería"]
["42: Otra pedagógica"]

{"sheet":"C400","index":4,"n_rows":73,"n_cols":22,"rows_kept":73,"cut":false,"hidden":false,"merged":[[71,9,71,11],[72,9,72,11],[69,9,69,11],[1,5,1,22],[2,5,2,22],[65,9,66,11],[67,9,67,11],[70,9,70,11],[65,4,66,8],[14,18,14,20],[46,19,46,22],[17,2,17,23],[68,9,68,11]]}
[]
[null,null,null,null,null,"CENSO EDUCATIVO 2025"]
[null,null,null,null,null,"MATRÍCULA, DOCENTES Y RECURSOS"]
[]
[]
[]
[null,null,"ÁREA DE PSICOLOGÍA"]
[null,null,null,"324. DURANTE EL PRESENTE AÑO, ¿SE CUENTA CON ALGÚN PROFESIONAL  DE  PSICOLOGÍA",null,null,null,null,null,null,null,null,null,null,"325.  ¿A TRAVÉS DE QUÉ MECANISMO SE INCORPORÓ AL PROFESIONAL DE PSICOLOGÍA?"]
[null,null,null,"   INCORPORADO A LA INSTITUCIÓN EDUCATIVA/PROGRAMA EDUCATIVO?",null,null,null,null,null,null,null,null,null,null,null,"Marque con una “X”, una opcion"]
[null,null,null,null,null,null,null,null,null,null,null,null,null,null,null,"Contratación a través de UGEL (alguna intervención o estrategia)",null,null,null,null,null,""]
[null,null,null,"Sí  ",null,null,null,null,null,null,null,null,null,null,null,"Contratación a través de UGEL (identificación de necesidad)",null,null,null,null,null,""]
[null,null,null,null,null,null,null,null,null,null,null,null,null,null,null,"Prácticas profesionales",null,null,null,null,null,""]
[null,null,null,null,null,null,null,null,null,null,null,null,null,null,null,"Servicio Rural y Urbano Marginal de Salud (Serums)",null,null,null,null,null,""]
[null,null,null,"No  ","","     Pase a la pregunta 401",null,null,null,null,null,null,null,null,null,"Pasantias",null,null,null,null,null,""]
[null,null,null,null,null,null,null,null,null,null,null,null,null,null,null,"Otro"]
[null,null,null,null,null,null,null,null,null,null,null,null,null,null,null,null,null,null,null,null,null,""]
[]
[null,null,"500. FORTALECIMIENTO DE LA GESTIÓN"]
[]
[null,null,"401. ESTE SERVICIO/NIVEL EDUCATIVO, ¿COORDINA ALGUNA ACCIÓN CON OTROS ACTORES DE LA LOCALIDAD PARA ",null,null,null,null,null,null,null,null,null,null,null,"405. USTED SEÑOR(A) DIRECTOR), ¿CUENTA CON PERSONAL ADMINISTRATIVO?"]
[null,null,null,"MEJORAR LA PRESTACIÓN DEL SERVICIO EDUCATIVO?"]
[null,null,null,null,null,null,null,null,null,null,null,null,null,null,null,null,"Sí    ",null,"No    "]
[null,null,null,"Sí",null,null,"No"]
["1: Siempre",null,null,null,null,null,null,null,null,null,null,null,null,null,null,null,null,null,"¿Qué temáticas considera usted que el personal administrativo debe ser capacitado?"]
[null,null,null,null,"Indique a los actores de la localidad",null,null,null,null,null,null,null,null,null,null,null,null,null,"Marque como máximo tres opciones"]
[null,null,null,null,"Marque con una \"X\", una o más opciones"]
[null,null,null,null,null,"Municipalidad distrital",null,null,null,null,null,null,null,null,null,null,null,null,"Trabajo en equipo"]
[null,null,null,null,null,"Municipalidad provincial",null,null,null,null,null,null,null,null,null,null,null,null,"Orientación al servicio y comunicación asertiva"]
[null,null,null,null,null,"Gobierno regional",null,null,null,null,null,null,null,null,null,null,null,null,"Primeros auxilios y seguridad y salud en el trabajo"]
["2: A Veces",null,null,null,null,"Empresa privada",null,null,null,null,null,null,null,null,null,null,null,null,"Manejo de herramientas TIC y ofimática"]
[null,null,null,null,null,"ONG o sociedad civil",null,null,null,null,null,null,null,null,null,null,null,null,"Manejo de los sistemas informáticos del MINEDU"]
["3: Nunca",null,null,null,null,null,null,null,null,null,null,null,null,null,null,null,null,null,"Mantenimiento (electricidad, gasfitería, carpintería, etc.)"]
[null,null,"402. USTED SEÑOR(A) DIRECTOR(A), ¿TIENE AULA A CARGO U HORAS LECTIVAS PARA EL PRESENTE AÑO?"]
[null,null,null,null,null,null,null,null,null,null,null,null,null,null,"406. USTED SEÑOR(A) DIRECTOR(A), ¿CUENTA CON PERSONAL AUXILIAR DE EDUCACIÓN?"]
[null,null,null,"Sí",null,null,"No"]
[null,null,null,null,null,null,null,null,null,"","","","",null,null,null,"Sí    ",null,"No    "]
[null,null,"403. ACTUALMENTE CUENTA CON ESPACIO EN EL QUE PUEDA DIALOGAR CON DIRECTORES DE OTRAS IIEE PARA COMPARTIR"]
[null,null,null,"EXPERIENCIAS Y DESARROLLAR ESTRATEGIAS PARA RESOLVER PROBLEMAS DE LA GESTIÓN DE SU ",null,null,null,null,null,null,null,null,null,null,null,null,null,null,"¿Qué temáticas considera usted que el personal auxiliar de educación debe ser capacitado?"]
[null,null,null,"SERVICIO/NIVEL EDUCATIVO?",null,null,null,null,null,null,null,null,null,null,null,null,null,null,"Marque como máximo tres opciones"]
[]
["01",null,null,"Sí","",null,"No",null,null,null,null,null,null,null,null,null,null,null,"Comunicación oral"]
["02",null,null,null,null,null,null,null,null,null,null,null,null,null,null,null,null,null,"Trabajo en equipo y organización"]
["03",null,null,null,null,"¿Quién promueve estos espacios?",null,null,null,null,null,null,null,null,null,null,null,null,"Resolución de problemas con agilidad y manejo de conflicto"]
["04",null,null,null,null,"Marque con una “X”, una o más opciones",null,null,null,null,null,null,null,null,null,null,null,null,"Primeros auxilios y seguridad y salud en el trabajo"]
["05",null,null,null,null,null,null,null,null,"","","","",null,null,null,null,null,"Desarrollo infantil"]
["06",null,null,null,null,"DRE/GRE",null,null,null,"","","","",null,null,null,null,null,"Relación con los estudiantes (el juego, soporte socioemocional, prevención)"]
["07",null,null,null,null,"UGEL",null,null,null,"","","","",null,null,null,null,null,"Otro"]
["08",null,null,null,null,"Red educativa",null,null,null,"","","",""]
["09",null,null,null,null,"Por iniciativa propia",null,"",null,"","","",""]
["10",null,null,null,null,"Asociaciones varias (ONG, colectivos, empresas, universidades, sindicatos)",null,null,null,"","","",""]
["11",null,null,null,null,"Ninguna de las anteriores",null,"",null,"","","","",null,"407. DURANTE EL PRESENTE AÑO ESCOLAR 2025, ¿CON QUÉ FRECUENCIA HA"]
["12",null,null,null,null,null,null,null,null,null,null,null,null,null,null,null,"VISITADO EL PORTAL WEB PARA DIRECTIVO DE IIEE DEL MINEDU?"]
["13",null,"404. ¿QUÉ TAN INTERESADO SE ENCONTRARÍA DE PARTICIPAR EN EL 2026 DE ESPACIOS EN LOS QUE SE REALICE TRABAJO",null,null,null,null,null,null,null,null,null,null,null,null,null,"(https://directivos-minedu.gob.pe/)"]
["14",null,null,"COLABORATIVO CON LOS DIRECTORES DE OTRAS IIEE PARA DIALOGAR SOBRE LOS PROBLEMAS DE LA GESTIÓN ESCOLAR?",null,null,null,null,null,"","","","",null,null,null,"Marque con una “X”, una opción"]
["15",null,null,"Marque con una “X”, una opción",null,null,null,null,null,"","","",""]
["16",null,null,null,null,null,null,null,null,"","","","",null,null,null,null,null,"Nunca he ingresado durante este año"]
["17",null,null,null,null,"Muy interesado",null,null,null,"","","","",null,null,null,null,null,"Casi nunca"]
["18",null,null,null,null,"Interesado",null,null,null,null,null,null,null,null,null,null,null,null,"A veces"]
["19",null,null,null,null,"Poco interesado",null,null,null,null,null,null,null,null,null,null,null,null,"Frecuentemente"]
["20",null,null,null,null,"Nada interesado",null,null,null,null,null,null,null,null,null,null,null,null,"Siempre"]
["21"]
["22"]
[null,null,"408. CON RESPECTO A LAS ACTIVIDADES ADMINISTRATIVAS, SELECCIONE LOS DOS PRINCIPALES ÁMBITOS QUE REPRESENTARON MAYOR CARGA LABORAL"]
[null,null,null,"DURANTE EL PRESENTE AÑO E INDIQUE UN ORDEN DE PRIORIDAD  DE \"1\" O \"2\", SIENDO 1 \"MAYOR CARGA\" Y 2 \"MENOR CARGA\" ENTRE LA SELECCIONADA"]
[]
[null,null,null,null,"COD.",null,null,null,null,"Prioridad\n(*)"]
[null,null,null,null,null,null,null,null,null,null,null,null,{"$f":"SUM(M68:M73)","v":0},null,null,"(*) Señale Prioridad, donde:"]
[null,null,null,null,1,"Gestión de recursos financieros, bienes, servicios e infraestructura",null,null,null,null,null,null,{"$f":"IF(J68<>\"\",1,0)","v":0},null,null,"1 = Más carga"]
[null,null,null,null,2,"Gestión de información de la IIEE (registro en sistemas administrativos)",null,null,null,null,null,null,{"$f":"IF(J69<>\"\",1,0)","v":0},null,null,"2 = Menos carga"]
[null,null,null,null,3,"Gestión y seguimiento del uso de los recursos educativos",null,null,null,null,null,null,0]
[null,null,null,null,4,"Limpieza y mantenimiento",null,null,null,null,null,null,0]
[null,null,null,null,5,"Prevención y atención de situaciones de riesgo",null,null,null,null,null,null,0]
[null,null,null,null,6,"Vigilancia y guardianía",null,null,null,null,null,null,0]

{"sheet":"C500","index":5,"n_rows":97,"n_cols":27,"rows_kept":97,"cut":false,"hidden":false,"merged":[[22,17,29,20],[6,1,6,27],[12,15,13,16],[12,17,13,20],[12,21,12,26],[14,15,21,16],[14,17,21,20],[18,7,18,9],[18,10,18,12],[19,7,20,7],[19,8,20,9],[19,10,20,11],[19,12,20,12],[21,8,21,9],[21,10,21,11],[32,15,34,16],[54,2,57,4],[54,5,57,7],[54,8,57,9],[54,10,57,11],[54,12,57,12],[22,8,22,9],[22,10,22,11],[22,15,29,16],[58,2,58,4],[58,5,58,7],[58,8,58,9],[58,10,58,11],[70,5,71,6],[70,8,71,8],[70,9,71,12],[74,9,74,12],[74,20,74,21],[74,22,74,23],[75,9,75,12],[75,20,75,21],[75,22,75,23],[1,6,1,24],[2,6,2,24],[73,9,73,12],[73,20,73,21],[73,22,73,23],[71,16,72,19],[71,20,71,25],[72,9,72,12],[72,22,72,23],[23,10,23,11],[24,8,24,9],[24,10,24,11],[25,3,25,6],[25,8,25,9],[25,10,25,11],[30,17,36,20],[76,9,76,12],[77,9,77,12],[78,9,78,12],[79,9,79,12],[80,9,80,12]]}
[]
[null,null,null,null,null,null,"CENSO EDUCATIVO 2025"]
[null,null,null,null,null,null,"MATRÍCULA, DOCENTES Y RECURSOS"]
[]
[]
[]
[null,"500. GESTIÓN DEL RIESGO DE DESASTRES"]
[]
[null,null,"501. EN EL PRESENTE AÑO, ESTE SERVICIO/NIVEL EDUCATIVO, ¿HA INCORPORADO ACCIONES",null,null,null,null,null,null,null,null,null,null,null,null,"502. SOBRE LA GESTIÓN DEL RIESGO DE DESASTRES EN ESTE SERVICIO/NIVEL EDUCATIVO,"]
[null,null,null,"ESTRATÉGICAS Y OPERATIVAS EN GESTIÓN DEL RIESGO DE DESASTRES Y SEGURIDAD Y",null,null,null,null,null,null,null,null,null,null,null,null,"ATIENDA LAS SIGUIENTES PREGUNTAS:"]
[null,null,null,"DEFENSA NACIONAL EN SUS INSTRUMENTOS DE GESTIÓN VIGENTES? ",null,null,null,null,null,null,null,null,null,null,null,null,"Marque con una “X” en “Si” o “No” según corresponda en atención a cada pregunta"]
[]
[null,null,null,"Sí","",null,null,null,"No  ",null,null,null,null,null,null,"Bien o Servicio",null,"Pregunta",null,null,null,"Marque con un “X”, según corresponda "]
[null,null,null,null,null,null,null,null,null,null,null,null,null,null,null,null,null,null,null,null,null,null,"SI","NO","Si es Sí, de quién lo recibió"]
[null,null,null,null,null,null,null,null,null,null,null,null,null,null,null,"Planos de Seguridad",null,"¿El servicio/nivel educativo cuenta con planos de seguridad acorde a la normativa?"]
[null,null,null,"Precise las acciones incorporadas en los documentos de gestión",null,null,null,null,null,null,null,null,null,null,null,null,null,null,null,null,null,null,null,null,"De la DRE/GRE",null,""]
[null,null,null,"Marque con una “X”, según corresponda ",null,null,null,null,null,null,null,null,null,null,null,null,null,null,null,null,null,null,null,null,"De la UGEL",null,""]
[null,null,null,null,null,null,null,null,null,null,null,null,null,null,null,null,null,null,null,null,null,null,"",null,"De la Municipalidad",null,""]
[null,null,null,null,null,null,null,"Riesgo de Desastres",null,null,"Seguridad y Defensa Nacional",null,null,null,null,null,null,null,null,null,null,null,null,null,"De una entidad privada",null,""]
[null,null,"Documentos de Gestión",null,null,null,null,"Acciones Estratégicas","Acciones Operativas",null,"Acciones Estratégicas",null,"Acciones Operativas",null,null,null,null,null,null,null,null,null,null,null,"Adquisición de la IE",null,""]
[null,null,null,null,null,null,null,null,null,null,null,null,null,null,null,null,null,null,null,null,null,null,null,null,"Donación",null,""]
[null,null,"Proyecto Educativo Inst. (PEI)",null,null,null,null,"",null,null,""]
[null,null,"Plan Anual de Trabajo (PAT)",null,null,null,null,null,"",null,null,null,"",null,null,"Dispositivos de Seguridad",null,"¿El servicio/nivel educativo cuenta con dispositivos de seguridad acorde a lo que indica en sus planos de seguridad?"]
[null,null,"Proyecto Curricular. Inst. (PCI)",null,null,null,null,"",null,null,"",null,null,null,null,null,null,null,null,null,null,null,null,null,"De la DRE/GRE",null,""]
[null,null,"Reglamento Interno (RI)",null,null,null,null,null,"",null,null,null,"",null,null,null,null,null,null,null,null,null,null,null,"De la UGEL",null,""]
[null,null,"Otros","",null,null,null,"","",null,"",null,"",null,null,null,null,null,null,null,null,null,"",null,"De la Municipalidad",null,""]
[null,null,null,null,null,null,null,null,null,null,null,null,null,null,null,null,null,null,null,null,null,null,null,null,"De una entidad privada",null,""]
[null,null,null,null,null,null,null,null,null,null,null,null,null,null,null,null,null,null,null,null,null,null,null,null,"Adquisición de la IE",null,""]
[null,null,null,null,null,null,null,null,null,null,null,null,null,null,null,null,null,null,null,null,null,null,null,null,"Donación",null,""]
[]
[null,null,null,null,null,null,null,null,null,null,null,null,null,null,null,null,null,"¿El servicio/nivel educativo cuenta con dispositivos de seguridad incompletos"]
[null,null,null,null,null,null,null,null,null,null,null,null,null,null,null,null,null,null,null,null,null,null,null,null,"De la DRE/GRE",null,""]
[null,null,null,null,null,null,null,null,null,null,null,null,null,null,null,"Otros Casos",null,null,null,null,null,null,null,null,"De la UGEL",null,""]
[null,null,null,null,null,null,null,null,null,null,null,null,null,null,null,null,null,null,null,null,null,null,"",null,"De la Municipalidad",null,""]
[null,null,null,null,null,null,null,null,null,null,null,null,null,null,null,null,null,null,null,null,null,null,null,null,"De una entidad privada",null,""]
[null,null,null,null,null,null,null,null,null,null,null,null,null,null,null,null,null,null,null,null,null,null,null,null,"Adquisición de la IE",null,""]
[null,null,null,null,null,null,null,null,null,null,null,null,null,null,null,null,null,null,null,null,null,null,null,null,"Donación",null,""]
[]
[]
[]
[null,null,"503. EN EL PRESENTE AÑO, LOS MIEMBROS DE ESTE SERVICIO/NIVEL EDUCATIVO,",null,null,null,null,null,null,null,null,null,null,null,null,"504. EN EL PRESENTE AÑO, ESTE SERVICIO/NIVEL EDUCATIVO HA SUFRIDO EL IMPACTO DE"]
[null,null,null,"¿HAN RECIBIDO ACCIONES FORMATIVAS EN MATERIA DE LA GESTIÓN DEL RIESGO ",null,null,null,null,null,null,null,null,null,null,null,null,"DAÑOS DE UN FENÓMENO NATURAL O ANTRÓPICO?"]
[null,null,null,"DE DESASTRES (GRD) Y/O SEGURIDAD Y DEFENSA NACIONAL (SDN)?"]
[null,null,null,null,null,null,null,null,null,null,null,null,null,null,null,null,"Sí","",null,null,null,null,"No  "]
[null,null,null,"Sí","",null,null,null,"No  "]
[]
[null,null,null,null,null,null,null,null,null,null,"Entidad",null,"SI - NO",null,null,null,null,null,null,"¿El servicio fue",null,null,"Sí",""]
[null,null,null,null,null,"El servicio fue brindado por:",null,null,null,"DRE/GRE",null,null,"",null,null,null,null,null,null,"suspendido?"]
[null,null,null,null,null,null,null,null,null,"UGEL",null,null,"",null,null,null,null,null,null,null,null,null,"No  ",""]
[null,null,null,null,null,null,null,null,null,"Municipio",null,null,""]
[null,null,null,null,null,null,null,null,null,"ONG/Entidad privada",null,null,"",null,null,null,"¿Cuál de los siguientes canales se utilizó para reportar la emergencia a la UGEL?"]
[null,null,null,null,null,null,null,null,null,null,null,null,{"$f":"COUNTIF(M48:M51,\"SI\")+COUNTIF(M48:M51,\"SI\")","v":0},null,null,null,"Marque con una “X”, una o más opciones"]
[null,null,"Tematicas: Marque con una “X”, según corresponda"]
[null,null,"Gestión del Riesgo de Desastres",null,null,null,null,null,null,null,"Seguridad y Defensa Nacional",null,null,null,null,null,"","Celular"]
[null,null,"Política/Plan NAcional en GRD",null,null,"Componentes, procesos o procedimientos de la GRD",null,null,"*Herramientas técnicas / Financieras en GRD",null,"Política/Plan Nacional en SDN",null,"Fundamentos de la SDN",null,null,null,"","Radiofonía"]
[null,null,null,null,null,null,null,null,null,null,null,null,null,null,null,null,"","Teléfono satelital"]
[null,null,null,null,null,null,null,null,null,null,null,null,null,null,null,null,"","Plataforma web"]
[null,null,null,null,null,null,null,null,null,null,null,null,null,null,null,null,"","Por conducto regular (oficio, informe)"]
[null,null,"",null,null,"",null,null,"",null,"",null,"",null,null,null,"","No se sabía que había que reportar a la UGEL"]
[null,null,{"$f":"COUNTIF(C59:M59,\"X\")","v":0},null,null,null,null,null,null,null,null,null,null,null,null,null,"","No se reportó la emergencia porque no hay cobertura ni canal disponible en la zona."]
[]
[]
[null,null,"505. EN EL PRESENTE AÑO, ESTE SERVICIO/NIVEL EDUCATIVO, ¿HA ORGANIZADO Y EJECUTADO",null,null,null,null,null,null,null,null,null,null,null,null,"507. EN EL AÑO 2024, ESTE SERVICIO/NIVEL EDUCATIVO, ¿PARTICIPÓ EN LOS SIMULACROS"]
[null,null,null,"CAMPAÑAS COMUNICACIONALES DE GESTIÓN DEL RIESGO DE DESASTRES (GRD) Y/O",null,null,null,null,null,null,null,null,null,null,null,null,"CONVOCADOS POR MINEDU Y/O INDECI?"]
[null,null,null,"SEGURIDAD Y DEFENSA NACIONAL (SDN)?"]
[null,null,null,null,null,null,null,null,null,null,null,null,null,null,null,null,"Sí","",null,null,null,null,"No  "]
[null,null,null,"Sí","",null,null,null,"No  "]
[]
[null,null,null,null,null,null,null,null,null,null,null,null,null,null,null,null,"¿Qué nivel de preparación lograron?"]
[null,null,null,"Tipo de campaña que realizó",null,null,null,null,null,null,null,null,null,null,null,null,"Marque con una “X”, el nivel logrado en cada simulacro"]
[null,null,null,null,null,"Ítems",null,null,"Elija una opción","Temática de la campaña*"]
[null,null,null,null,null,null,null,{"$f":"COUNTIF(I73:I81,\"SI\")+COUNTIF(I73:I81,\"NO\")","v":0},null,null,null,null,null,null,null,null,"N° de simulacro",null,null,null,"Nivel de preparación Marque con un “X”"]
[null,null,null,1,"Pasacalle",null,null,null,"","",null,null,null,null,null,null,null,null,null,null,"Inicio",null,"Proceso",null,"Bueno","Destacado"]
[null,null,null,2,"Feria",null,null,null,"","",null,null,null,null,null,null,1,"Primer simulacro",null,null,"",null,"",null,"",""]
[null,null,null,3,"Activaciones motivadoras",null,null,null,"","",null,null,null,null,null,null,2,"Segundo simulacro",null,null,"",null,"",null,"",""]
[null,null,null,4,"Conferencias /Foros",null,null,null,"","",null,null,null,null,null,null,3,"Tercer simulacro",null,null,"",null,"",null,"",""]
[null,null,null,5,"Webinars",null,null,null,"",""]
[null,null,null,6,"Difusión de afiches, trípticos, volantes",null,null,null,"",""]
[null,null,null,7,"Murales",null,null,null,"",""]
[null,null,null,8,"Post en redes sociales",null,null,null,"",""]
[null,null,null,9,"Post radiales",null,null,null,"",""]
[]
[]
[null,null,"506. ESTE SERVICIO/NIVEL EDUCATIVO, ¿CUENTA CON UN PLAN DE GESTIÓN DEL RIESGO DE DESASTRES?"]
[]
[null,null,null,"Sí","",null,null,null,"No  "]
[]
[]
[null,null,null,"¿Qué actividades ha desarrollado en el Plan?"]
[null,null,null,"Marque con una “X”, una o más opciones"]
[]
[null,null,null,"","Identificó los peligros más frecuentes de la IE. (Ejem: lluvias, huaycos, entre otros)."]
[null,null,null,"","Identificó las vulnerabilidades en la IE. (Ejem: techos, canaletas, paredes, pisos en mal estado, personal sin capacitación, entre otros)."]
[null,null,null,"","Priorizó acciones correctivas en la infraestructura de la IE con presupuesto de mantenimiento."]
[null,null,null,"","Procedimientos de evacuación a zonas seguras en situaciones de emergencias."]
[null,null,null,"","Procedimientos de contención y soporte socioemocional en situaciones de emergencias."]
[null,null,null,"","Procedimientos de aplicación del currículo vigente en situaciones de emergencias"]

{"sheet":"C600","index":6,"n_rows":129,"n_cols":23,"rows_kept":129,"cut":false,"hidden":false,"merged":[[85,3,85,7],[85,8,85,10],[85,11,85,18],[85,19,85,21],[82,19,82,21],[83,3,83,7],[83,8,83,10],[83,11,83,18],[83,19,83,21],[84,3,84,7],[84,8,84,10],[84,11,84,18],[84,19,84,21],[82,3,82,7],[82,8,82,10],[82,11,82,18],[48,8,48,10],[6,1,6,23],[15,15,16,19],[15,20,16,20],[15,21,16,21],[15,22,16,22],[26,17,26,19],[69,20,69,22],[1,6,1,20],[2,6,2,20],[44,9,44,11],[46,8,46,10],[47,8,47,10],[47,20,47,22]]}
[]
[null,null,null,null,null,null,"CENSO EDUCATIVO 2025"]
[null,null,null,null,null,null,"MATRÍCULA, DOCENTES Y RECURSOS"]
[]
[]
[]
[null,"600. EDUCACIÓN AMBIENTAL"]
[]
[null,null,"601. EN EL PRESENTE AÑO, ESTE SERVICIO/NIVEL EDUCATIVO, ¿HA ELABORADO SU PROYECTO",null,null,null,null,null,null,null,null,null,null,null,"602. SEÑOR(A) DIRECTOR(A), SI HA ELABORADO SU PROYECTO EDUCATIVO AMBIENTAL"]
[null,null,null,"EDUCATIVO AMBIENTAL INTEGRADO (PEAI)?",null,null,null,null,null,null,null,null,null,null,null,"INTEGRADO (PEAI), MARQUE USTED, LAS PROBLEMÁTICAS/OPORTUNIDADES AMBIENTALES"]
[null,null,null,null,null,null,null,null,null,null,null,null,null,null,null,"QUE SE ABORDAN EN EL PEAI, DE ACUERDO A LO SIGUIENTE:"]
[null,null,null,"Sí",""]
[null,null,null,null,null,null,null,null,null,null,null,null,null,null,null,"Marque con una “X”, hasta dos opciones"]
[null,null,null,null,null,"¿Ha implementado su proyecto educativo ambiental integrado (PEAI):"]
[]
[null,null,null,null,null,"Sí  ","",null,"Período",null,"Año","Mes",null,null,null,"Problemáticas / Oportunidades",null,null,null,null,"Principal","Comple- mentario","No aplica"]
[null,null,null,null,null,null,null,"","Desde",null,"",""]
[null,null,null,null,null,"No  ","","","Hasta",null,"","",null,null,null,1,"Contaminación por residuos sólidos",null,null,null,"","",""]
[null,null,null,null,null,null,null,null,null,null,null,null,null,null,null,2,"Cambio climático",null,null,null,"","",""]
[null,null,null,null,null,null,null,null,null,null,null,null,null,null,null,3,"Contaminación del agua",null,null,null,"","",""]
[null,null,null,"No  ",null,null,"Pase a la pregunta 603.",null,null,null,null,null,null,null,null,4,"Desertificación",null,null,null,"","",""]
[null,null,null,null,null,null,null,null,null,null,null,null,null,null,null,5,"Depredación de flora y fauna",null,null,null,"","",""]
[null,null,null,null,null,null,null,null,null,null,null,null,null,null,null,6,"Microplásticos",null,null,null,"","",""]
[null,null,null,null,"Indique el/los motivo(s):",null,null,null,null,null,null,null,null,null,null,7,"3R: reducir, reusar, reciclar",null,null,null,"","",""]
[null,null,null,null,"Marque con una “X”, una o más opciones",null,null,null,null,null,null,null,null,null,null,8,"Contaminación del aire",null,null,null,"","",""]
[null,null,null,null,null,null,null,null,null,null,null,null,null,null,null,9,"Alimentación saludable",null,null,null,"","",""]
[null,null,null,null,"","Falta de conocimiento o capacitación",null,null,null,null,null,null,null,null,null,10,"Otro","",null,null,"","",""]
[null,null,null,null,"","Falta de recursos"]
[null,null,null,null,"","Resistencia al cambio"]
[null,null,null,null,"","Dificultades para integrar el PEAI en el currículo"]
[null,null,null,null,"","Falta de apoyo institucional"]
[]
[]
[null,null,"603. EL SERVICIO/NIVEL EDUCATIVO, ¿CUENTA CON LA BRIGADA DE EDUCACIÓN AMBIENTAL Y",null,null,null,null,null,null,null,null,null,null,null,"605. SEÑOR(A) DIRECTOR(A), ¿LA BRIGADA DE EDUCACIÓN AMBIENTAL Y GESTIÓN DEL"]
[null,null,null,"GESTIÓN DE RIESGO DE DESASTRES?",null,null,null,null,null,null,null,null,null,null,null,"RIESGO DE DESASTRES CONFORMADA HA SIDO FORTALECIDO?"]
[]
[null,null,null,null,null,null,null,null,null,null,null,null,null,null,null,"Sí"]
[]
[null,null,null,"Sí","",null,null,null,"No  ",null," u       Pase a responsable del",null,null,null,null,null,null,null,"¿Quiénes la realizaron?"]
[null,null,null,null,null,null,null,null,null,null,null,"llenado de la cédula",null,null,null,null,null,null,"Marque con una “X”, una o más opciones"]
[]
[null,null,null,null,null,"Documento que lo aprueba",null,null,null,null,"Resolución",null,null,null,null,null,null,null,null,"El brigadista líder"]
[null,null,null,null,null,null,null,null,null,null,"Otro",null,null,null,null,null,null,null,null,"Directivo"]
[null,null,null,null,null,null,null,null,null,null,null,null,null,null,null,null,null,null,null,"Docentes"]
[null,null,null,null,null,"Número del Documento",null,null,null,"",null,null,null,null,null,null,null,null,null,"UGEL"]
[null,null,null,null,null,null,null,null,null,null,null,null,null,null,null,null,null,null,null,"DRE/GRE"]
[null,null,null,null,null,null,null,null,"Desde:",null,null,"Hasta:",null,null,null,null,null,null,null,"Gobierno local"]
[null,null,null,null,null,"Vigencia de la brigada",null,null,"DD/MM/AAAA",null,null,"DD/MM/AAAA",null,null,null,null,null,null,null,"Otro",""]
[null,null,null,null,null,null,null,null,"",null,null,""]
[null,null,null,null,null,null,null,null,null,null,null,null,null,null,"606. SEÑOR(A) DIRECTOR(A), INDIQUE USTED, ¿SI EN LOS DOS ÚLTIMOS AÑOS, LOS"]
[null,null,null,null,null,null,null,null,null,null,null,null,null,null,null,"INTEGRANTES DE LA BRIGADA DE EDUCACIÓN AMBIENTAL Y GESTIÓN DEL"]
[null,null,null,null,null,null,null,null,null,null,null,null,null,null,null,"RIESGO DE DESASTRES, HAN SIDO CAPACITADOS?"]
[]
[null,null,null,null,null,null,null,null,null,null,null,null,null,null,null,"Sí",null,null,"¿En qué temas han sido capacitados?"]
[null,null,"604. SEÑOR(A) DIRECTOR(A), LA BRIGADA DE EDUCACIÓN AMBIENTAL Y GESTIÓN DEL",null,null,null,null,null,null,null,null,null,null,null,null,null,null,null,"Marque con una “X”, una o más opciones"]
[null,null,null,"RIESGO DE DESASTRES CONFORMADA, ¿CUENTA CON UN PLAN DE ACCIÓN ELABORADO?"]
[null,null,null,null,null,null,null,null,null,null,null,null,null,null,null,null,null,null,null,"Cambio climático"]
[null,null,null,null,null,null,null,null,null,null,null,null,null,null,null,null,null,null,null,"Manejo de residuos sólidos"]
[null,null,null,"Sí",null,null,null,null,null,null,null,null,null,null,null,null,null,null,null,"Cuidado de los humedales"]
[null,null,null,null,null,null,null,null,null,null,null,null,null,null,null,null,null,null,null,"Diversidad biológica"]
[null,null,null,null,null,null,"Indique la fecha de la elaboración del plan de acción",null,null,null,null,null,null,null,null,null,null,null,null,"Primeros auxilios"]
[null,null,null,null,null,null,null,null,null,null,null,null,null,null,null,null,null,null,null,"Capacitación contra Incendios"]
[null,null,null,null,null,null,null,null,null,null,null,null,null,null,null,null,null,null,null,"Señalización y evacuación"]
[null,null,null,null,null,null,"Día","Mes","Año",null,null,null,null,null,null,null,null,null,null,"Seguridad y protección"]
[null,null,null,null,null,null,null,null,null,null,null,{"$f":"CONCATENATE(G65,\"/\",H65,\"/\",I65)","v":"//"},null,null,null,null,null,null,null,"Soporte Socioemocional y actividades lúdicas"]
[null,null,null,null,null,null,null,null,null,null,null,null,null,null,null,null,null,null,null,"Alimentación saludable"]
[null,null,null,null,null,null,null,null,null,null,null,null,null,null,null,null,null,null,null,"Transporte sostenible"]
[null,null,null,null,null,null,null,null,null,null,null,null,null,null,null,null,null,null,null,"Desertificación"]
[null,null,null,null,null,null,null,null,null,null,null,null,null,null,null,null,null,null,null,"Plásticos y microplásticos"]
[null,null,null,null,null,null,null,null,null,null,null,null,null,null,null,null,null,null,null,"Otro",""]
[null,null,null,"No  ",null,null,null,null,null,null,null,null,null,null,null,null,null,null,""]
[null,null,null,null,null,null,null,null,null,null,null,null,null,null,null,"No  ",null,null,"Indique, ¿cuál es el motivo?"]
[null,null,null,null,null,null,null,null,null,null,null,null,null,null,null,null,null,null,"Marque con una “X”, una opción"]
[null,null,null,null,"¿El plan de acción esta incorporado en el plan anual de trabajo?"]
[null,null,null,null,null,null,null,null,null,null,null,null,null,null,null,null,null,null,null,"No saben a quién solicitar apoyo para la capacitación"]
[null,null,null,null,"Sí",null,null,null,"No  ",null,null,null,null,null,null,null,null,null,null,"No cuentan con aliados especializados"]
[null,null,null,null,null,null,null,null,null,null,null,null,null,null,null,null,null,null,null,"Se suspendió por cruce de actividades"]
[null,null,null,null,null,null,null,null,null,null,null,null,null,null,null,null,null,null,null,"No se ha recibido invitación"]
[]
[]
[null,"DATOS DEL DIRECTOR(A) / RESPONSABLE DEL LLENADO DE LA CÉDULA"]
[]
[null,null,null,"NOMBRES Y APELLIDOS",null,null,null,null,"CARGO",null,null,"CORREO ELECTRÓNICO",null,null,null,null,null,null,null,"TELÉFONO"]
[]
[]
[]
[]
[]
[]
[]
["DIRECTOR(A)"]
["SUB DIRECTOR(A)"]
["DOCENTE"]
["COORDINADOR(A)"]
["ASESOR"]
["ADMINISTRATIVO"]
["ASISTENTE"]
["AUXILIAR"]
["SECRETARIA(O)"]
["ESTADÍSTICO"]
["ESPECIALISTA"]
["BIBLIOTECARIO"]
["CARE"]
["COMANDANTE PNP"]
["CONTADOR"]
["DAIP"]
["DIGITADOR(A)"]
["GERENTE"]
["JEFE ACADÉMICO"]
["JEFE ADMINISTRATIVO"]
["JEFE DE ÁREA"]
["JEFE DE LABORATORIO"]
["JEFE DE PERSONAL"]
["JEFE DE SEDE"]
["JEFE DE UNIDAD"]
["OFICINISTA"]
["OPERADOR DE SISTEMAS"]
["PERSONAL DE SERVICIO"]
["PROGRAMADOR"]
["PROMOTOR(A)"]
["PSICOLOGO"]
["REGISTRADOR(A)"]
["REPRESENTANTE LEGAL"]
["SOPORTE TECNOLOGICO"]
["TÉCNICO ADMINISTRATIVO"]
["TESORERO(A)"]
["TRABAJADOR SOCIAL"]
["TUTOR"]
["OTROS"]

{"sheet":"Enviar","index":7,"n_rows":9,"n_cols":4,"rows_kept":9,"cut":false,"hidden":false,"merged":[[0,1,0,4],[1,1,1,4]]}
[null,"CENSO EDUCATIVO 2025"]
[null,"MATRÍCULA, DOCENTES Y RECURSOS"]
[]
[]
[null,null,"Paso 1:","Realice el ENVÍO con su clave EOL."]
[]
[null,null,"Paso 2:","Una vez realizado el ENVÍO,  Revise su constancia de envio."]
[]
[null,null,"  ADVERTENCIA","ASEGÚRESE DE REGISTRAR TODA LA INFORMACIÓN DEL NIVEL INFORMANTE"]